Workbook

Sheet Introduction
B2: ='Planning Ratios'!B2 -> Retirement Planning Ratio Forecasts (LT25)
B4: Personal Finance: Another Perspective
B6: Purpose:
B7: The purpose of this spreadsheet is to give an Excel template for determining where you are in your
B8: progress toward your retirement goals. Special thanks to Ryan Huling who put
B9: together the idea for this spreadsheet. It is based on the article from the WSJ by Jonathan
B10: Clements on: "Ugly Math: How Soaring Housing Costs are Jeopardizing Retirement Savings,"
B11: March 25, 2005, p. D1. The article makes some major assumptions which include: 1. Investors
B12: will earn 5% morethan inflation; 2. Investors will save 12% of pre-tax income every year
B13: from age 30 to 65; and 3. Investors will withdraw 5% of portfolio value each year.
B15: Additional Assumptions:
B16: With this spreadsheeet, we assume: 1. Housing payments are expenses, and investors can handle
B17: up to the recommended 36% of gross salary for housing. 2. Additional payments to housing
B18: expenses come out of savings. 3. Individual inputs for assumptions are consistent and achievable.
B19: 4. Tax savings on interest payments are considered part of expenses. 5. The amount of
B20: retirement savings desired is a multiple of income.
B22: Disclosure:
B23: The purpose of this spreadsheet and this class is to help you get your financial house in
B24: order and to help you on your road to financial self-reliance. If there are mistakes in this
B25: spreadsheet, please bring them to our attention and we will correct them in upcoming
B26: versions. The teacher, and BYU, specifically disclaim any liability, or responsibility for
B27: claims, loss, or risk incurred, directly or indirectly, from using this material.

Sheet Planning Ratios
B2: Retirement Planning Ratio Forecasts (LT25)
B3: Personal Finance: Another Perspective
B5: Special thanks to Ryan Huling who put together the idea for this spreadsheet. It is based on the article from the WSJ by Jonathan Clements on: "Ugly Math: How Soaring
B6: Housing Costs are Jeopardizing Retirement Savings," March 25, 2005, p. D1. The article makes some major assumptions which include: 1. Investors will 5% more
B7: than inflation; 2. Investors will save 12% of pre-tax income every year from age 30 to 65; and 3. Investors will withdraw 5% of portfolio value each year. With our model,
B8: we assume: 1. Housing payments are expenses; 2. Prepayments are out of savings; and 3. You can set additional parameters depending on your situation.
C9: Retirement Planning Ratio Forecasts (LT25)
C11: Debt and Income Information
C12: Age at beginning of employment | F12: 45 | H12: Estiomated Savings and Debt to Income Ratios | K12: WSJ Recommended Ratios
C13: Starting Income | F13: 82000 | H13: Age | I13: Savings | J13: Debt | K13: Savings | L13: Debt
C14: Average annual increase in income | F14: 0.015 | H14: 25 | I14: =IF(H14>=Age,VLOOKUP($H14,$B$36:$L$117,10),"") ->  | J14: =IF(H14>=Age,VLOOKUP($H14,$B$36:$L$117,11),"") -> 
C15: Age at retirement | F15: 65 | H15: 30 | I15: =IF(H15>=Age,VLOOKUP($H15,$B$36:$L$117,10),"NA") -> NA | J15: =IF(H15>=Age,VLOOKUP($H15,$B$36:$L$117,11),"NA") -> NA | K15: 0.1 | L15: 1.7
C16: Years in Retirement | F16: 30 | H16: 35 | I16: NA | J16: NA | K16: 0.9 | L16: 1.5
C17: Number of Working Years | F17: =Age_at_Retirement-F12 -> 20 | H17: 40 | I17: NA | J17: NA | K17: 1.8 | L17: 1.25
C18: Estimated Annuity Rate (in %) | F18: 0.04 | H18: 45 | I18: 1.602439024 | J18: 1.862397702 | K18: 3 | L18: 1
C19: Estimated Payout Percentage (in %) | F19: 0.04 | H19: 50 | I19: 3.278684708 | J19: 1.216886924 | K19: 4.5 | L19: 0.75
H20: 55 | I20: 5.46104449 | J20: 0.5514596743 | K20: 6.5 | L20: 0.5
C21: Annual percent of salary saved | F21: 0.2 | H21: 60 | I21: 8.302330984 | J21: 0 | K21: 8.9 | L21: 0.2
C22: Current Savings | F22: 115000 | H22: 65 | I22: 12.00149599 | J22: 0 | K22: 12 | L22: 0
C23: Return on Investment | F23: 0.07 | K23: Note 1 | L23: Note 2
C24: Assumed inflation rate | H24: Total Savings at Retirement | K24: Annuity Pymt | L24: Payout Pymt
H25: Total Savings | J25: =VLOOKUP(Age_at_Retirement,$B$36:$L$118,5) -> 1325470.547 | K25: =PMT($F$18,$F$16,J25*-1) -> 76652.09312 | L25: =J25*F19 -> 53018.82187
C26: Age when you purchase(d) home | F26: 30 | G26: =IF(K31<>"","Too Much Debt","") ->  | H26: Savings to Income / % of Salary | J26: =J25/VLOOKUP(Age_at_Retirement,$B$36:$L$117,2) -> 12.00149599 | K26: =K25/VLOOKUP(Age_at_Retirement,$B$37:$T$117,2) -> 0.6940477029 | L26: =L25/VLOOKUP(Age_at_Retirement,$B$37:$T$117,2) -> 0.4800598396
C27: Cost of the home | F27: 250000 | G27: =IF(K31<>"","for Salary","") ->  | H27: Total Inflation-adjusted Savings | J27: =VLOOKUP(Age_at_Retirement,$B$36:$T$118,15) -> 880456.8336 | K27: =PMT(((1+$F$18)/(1+F24)-1),$F$16,J27*-1) -> 50916.90597 | L27: =J27*0.05 -> 44022.84168
C28: Down Payment | H28: Savings to Income / % of Salary | J28: =J27/VLOOKUP(Age_at_Retirement,$B$36:$L$117,2) -> 7.972111628 | K28: =K27/VLOOKUP(Age_at_Retirement,$B$37:$T$117,16) -> 0.4610280057 | L28: =L27/VLOOKUP(Age_at_Retirement,$B$37:$T$117,16) -> 0.3986055814
C29: Mortgage amount | F29: =F27-F28 -> 250000
C30: Taxes and Insurance | F30: 3000 | H30: As a % of Salary | K30: PITI should be less than 36%
C31: Mortgage interest rate | F31: 0.04 | H31: Mortgage Payment before Prepmt | J31: =R35 -> 0.2128966437 | K31: =IF(J31>0.36,"Not within Mortgage","") -> 
C32: Mortgage term | F32: 30 | G32: =IF(MIN(E37:E117)<0,"Not Enough","") ->  | H32: Notes: | K32: =IF(J31>0.36,"Payment Guidelines","") -> 
C33: Years to pay off loan | F33: 30 | G33: =IF(MIN(E38:E118)<0,"Savings to Prepay","") ->  | H33: 1. The annuity payment is calculated based on your estimated annuity rate in F19.
C34: Assumed growth in home prices | F34: 0 | H34: 2. 5% Payout assumes a 5% reduction in total savings per year | R34: Maximum
R35: =MAX(R37:R117) -> 0.2128966437
B36: Age | C36: Income | D36: Annual Savings | E36: Net Annual Savings after Prepayment | F36: Total Accumulated Savings | G36: Savings to Extra Home Loan Payment | H36: Standard Home Loan Payment | I36: Standard Home Loan Balance | J36: Loan Balance With additional Payments | K36: Savings to Income Ratio | L36: Debt to Income Ratio | P36: Inflation Adjusted Savings | Q36: Inflation Adjusted Salary | R36: Maximum Payment as a % of Gross Salary (w/o savings) | S36: Year | T36: Value of Mortgage | V36: Savings after Payout
B37: =F12 -> 45 | C37: =F13 -> 82000 | D37: =C37*Annual_Savings -> 16400 | E37: =$F$21*C37-G37 -> 16400 | F37: =F22+E37 -> 131400 | G37: =IF(B37>=Support!$A$7,IF(VLOOKUP(B37,Support!$A$4:$F$47,2)>0,VLOOKUP(B37,Support!$A$4:$F$47,3)-Support!$J$7,0),0) -> 0 | H37: =IF(B37<Support!$H$7,0,VLOOKUP(B37,Support!$H$4:$M$47,3)) -> 14457.52478 | I37: =IF(B37>=Support!$H$7,VLOOKUP(B37,Support!$H$4:$M$47,6),0) -> 152716.6115 | J37: =IF(B37<Support!$A$7,0,VLOOKUP(B37,Support!$A$4:$F$47,6)) -> 152716.6115 | K37: =IF(C37>0,F37/C37,"None") -> 1.602439024 | L37: =IF(C37>0,J37/C37,"None") -> 1.862397702 | P37: =D37 -> 16400 | Q37: =C37/(1+$F$24) -> 82000 | R37: =IF(H37=0,0,(H37+$F$30)/C37) -> 0.2128966437 | S37: 1 | T37: =IF(ISERR((IF(Support!$A$7=B37,Support!$B$7,IF(T36>0,T36*(1+$F$34),0)))),"",(IF(Support!$A$7=B37,Support!$B$7,IF(T36>0,T36*(1+$F$34),0)))) -> 
B38: =B37+1 -> 46 | C38: =IF(B38<=$F$15,C37*(1+$F$14),0) -> 83230 | D38: 16646 | E38: =$F$21*C38-G38 -> 16646 | F38: =(E38+F37)*(1+$F$23) -> 158409.22 | G38: =IF(B38>=Support!$A$7,IF(VLOOKUP(B38,Support!$A$4:$F$47,2)>0,VLOOKUP(B38,Support!$A$4:$F$47,3)-Support!$J$7,0),0) -> 0 | H38: =IF(B38<Support!$H$7,0,VLOOKUP(B38,Support!$H$4:$M$47,3)) -> 14457.52478 | I38: =IF(B38>=Support!$H$7,VLOOKUP(B38,Support!$H$4:$M$47,6),0) -> 144367.7512 | J38: =IF(B38<Support!$A$7,0,VLOOKUP(B38,Support!$A$4:$F$47,6)) -> 144367.7512 | K38: =IF(C38>0,F38/C38,"None") -> 1.903270696 | L38: =IF(C38>0,J38/C38,"None") -> 1.734563874 | P38: =(P37+E38)*(1+$F$23)/(1+$F$24) -> 35359.22 | Q38: =C38/(1+$F$24)^(S38) -> 83230 | R38: =IF(B38="","",IF(H38=0,0,(H38+$F$30)/C38)) -> 0.2097503879 | S38: 2 | T38: =IF(ISERR((IF(Support!$A$7=B38,Support!$B$7,IF(T37>0,T37*(1+$F$34),0)))),"",(IF(Support!$A$7=B38,Support!$B$7,IF(T37>0,T37*(1+$F$34),0)))) -> 
B39: =IF(B38="","",IF(B38+1>$F$15+$F$16,"",B38+1)) -> 47 | C39: 84478.45 | D39: 16895.69 | E39: =IF(B39="","",$F$21*C39-G39) -> 16895.69 | F39: =IF(B39="","",(E39+F38)*(1+$F$23)) -> 187576.2537 | G39: =IF(B39="","",IF(B39>=Support!$A$7,IF(VLOOKUP(B39,Support!$A$4:$F$47,2)>0,VLOOKUP(B39,Support!$A$4:$F$47,3)-Support!$J$7,0),0)) -> 0 | H39: =IF(B39="","",IF(B39<Support!$H$7,0,VLOOKUP(B39,Support!$H$4:$M$47,3))) -> 14457.52478 | I39: =IF(B39="","",IF(B39>=Support!$H$7,VLOOKUP(B39,Support!$H$4:$M$47,6),0)) -> 135684.9365 | J39: =IF(B39="","",IF(B39<Support!$A$7,0,VLOOKUP(B39,Support!$A$4:$F$47,6))) -> 135684.9365 | K39: =IF(B39="","",IF(C39>0,F39/C39,"None")) -> 2.220403591 | L39: =IF(B39="","",IF(C39>0,J39/C39,"None")) -> 1.606148509 | P39: 55912.7537 | Q39: 84478.45 | R39: =IF(C39=0,"",IF(H39=0,0,(H39+$F$30)/C39)) -> 0.2066506285 | S39: 3 | T39: =IF(ISERR((IF(Support!$A$7=B39,Support!$B$7,IF(T38>0,T38*(1+$F$34),0)))),"",(IF(Support!$A$7=B39,Support!$B$7,IF(T38>0,T38*(1+$F$34),0)))) -> 
B40: 48 | C40: 85745.62675 | D40: 17149.12535 | E40: 17149.12535 | F40: 219056.1556 | G40: =IF(B40="","",IF(B40>=Support!$A$7,IF(VLOOKUP(B40,Support!$A$4:$F$47,2)>0,VLOOKUP(B40,Support!$A$4:$F$47,3)-Support!$J$7,0),0)) -> 0 | H40: =IF(B40="","",IF(B40<Support!$H$7,0,VLOOKUP(B40,Support!$H$4:$M$47,3))) -> 14457.52478 | I40: =IF(B40="","",IF(B40>=Support!$H$7,VLOOKUP(B40,Support!$H$4:$M$47,6),0)) -> 126654.8092 | J40: =IF(B40="","",IF(B40<Support!$A$7,0,VLOOKUP(B40,Support!$A$4:$F$47,6))) -> 126654.8092 | K40: 2.554721026 | L40: 1.477099346 | P40: 78176.21058 | Q40: 85745.62675 | R40: 0.2035966783 | S40: 4 | T40: =IF(ISERR((IF(Support!$A$7=B40,Support!$B$7,IF(T39>0,T39*(1+$F$34),0)))),"",(IF(Support!$A$7=B40,Support!$B$7,IF(T39>0,T39*(1+$F$34),0)))) -> 
B41: 49 | C41: 87031.81115 | D41: 17406.36223 | E41: 17406.36223 | F41: 253014.8941 | G41: =IF(B41="","",IF(B41>=Support!$A$7,IF(VLOOKUP(B41,Support!$A$4:$F$47,2)>0,VLOOKUP(B41,Support!$A$4:$F$47,3)-Support!$J$7,0),0)) -> 0 | H41: =IF(B41="","",IF(B41<Support!$H$7,0,VLOOKUP(B41,Support!$H$4:$M$47,3))) -> 14457.52478 | I41: =IF(B41="","",IF(B41>=Support!$H$7,VLOOKUP(B41,Support!$H$4:$M$47,6),0)) -> 117263.4767 | J41: =IF(B41="","",IF(B41<Support!$A$7,0,VLOOKUP(B41,Support!$A$4:$F$47,6))) -> 117263.4767 | K41: 2.907154186 | L41: 1.347363397 | P41: 102273.3529 | Q41: 87031.81115 | R41: 0.2005878604 | S41: 5 | T41: =IF(ISERR((IF(Support!$A$7=B41,Support!$B$7,IF(T40>0,T40*(1+$F$34),0)))),"",(IF(Support!$A$7=B41,Support!$B$7,IF(T40>0,T40*(1+$F$34),0)))) -> 
B42: 50 | C42: 88337.28832 | D42: 17667.45766 | E42: 17667.45766 | F42: 289630.1163 | G42: =IF(B42="","",IF(B42>=Support!$A$7,IF(VLOOKUP(B42,Support!$A$4:$F$47,2)>0,VLOOKUP(B42,Support!$A$4:$F$47,3)-Support!$J$7,0),0)) -> 0 | H42: =IF(B42="","",IF(B42<Support!$H$7,0,VLOOKUP(B42,Support!$H$4:$M$47,3))) -> 14457.52478 | I42: =IF(B42="","",IF(B42>=Support!$H$7,VLOOKUP(B42,Support!$H$4:$M$47,6),0)) -> 107496.491 | J42: =IF(B42="","",IF(B42<Support!$A$7,0,VLOOKUP(B42,Support!$A$4:$F$47,6))) -> 107496.491 | K42: 3.278684708 | L42: 1.216886924 | P42: 128336.6673 | Q42: 88337.28832 | R42: 0.1976235078 | S42: 6 | T42: =IF(ISERR((IF(Support!$A$7=B42,Support!$B$7,IF(T41>0,T41*(1+$F$34),0)))),"",(IF(Support!$A$7=B42,Support!$B$7,IF(T41>0,T41*(1+$F$34),0)))) -> 
B43: 51 | C43: 89662.34764 | D43: 17932.46953 | E43: 17932.46953 | F43: 329091.9669 | G43: =IF(B43="","",IF(B43>=Support!$A$7,IF(VLOOKUP(B43,Support!$A$4:$F$47,2)>0,VLOOKUP(B43,Support!$A$4:$F$47,3)-Support!$J$7,0),0)) -> 0 | H43: =IF(B43="","",IF(B43<Support!$H$7,0,VLOOKUP(B43,Support!$H$4:$M$47,3))) -> 14457.52478 | I43: =IF(B43="","",IF(B43>=Support!$H$7,VLOOKUP(B43,Support!$H$4:$M$47,6),0)) -> 97338.82589 | J43: =IF(B43="","",IF(B43<Support!$A$7,0,VLOOKUP(B43,Support!$A$4:$F$47,6))) -> 97338.82589 | K43: 3.670347426 | L43: 1.085615405 | P43: 156507.9764 | Q43: 89662.34764 | R43: 0.1947029633 | S43: 7 | T43: =IF(ISERR((IF(Support!$A$7=B43,Support!$B$7,IF(T42>0,T42*(1+$F$34),0)))),"",(IF(Support!$A$7=B43,Support!$B$7,IF(T42>0,T42*(1+$F$34),0)))) ->  | V43: =IF(C43="",0) -> FALSE
B44: 52 | C44: 91007.28286 | D44: 18201.45657 | E44: 18201.45657 | F44: 371603.9631 | G44: =IF(B44="","",IF(B44>=Support!$A$7,IF(VLOOKUP(B44,Support!$A$4:$F$47,2)>0,VLOOKUP(B44,Support!$A$4:$F$47,3)-Support!$J$7,0),0)) -> 0 | H44: =IF(B44="","",IF(B44<Support!$H$7,0,VLOOKUP(B44,Support!$H$4:$M$47,3))) -> 14457.52478 | I44: =IF(B44="","",IF(B44>=Support!$H$7,VLOOKUP(B44,Support!$H$4:$M$47,6),0)) -> 86774.85414 | J44: =IF(B44="","",IF(B44<Support!$A$7,0,VLOOKUP(B44,Support!$A$4:$F$47,6))) -> 86774.85414 | K44: 4.083233247 | L44: 0.9534935163 | P44: 186939.0933 | Q44: 91007.28286 | R44: 0.1918255796 | S44: 8 | T44: =IF(ISERR((IF(Support!$A$7=B44,Support!$B$7,IF(T43>0,T43*(1+$F$34),0)))),"",(IF(Support!$A$7=B44,Support!$B$7,IF(T43>0,T43*(1+$F$34),0)))) -> 
B45: 53 | C45: 92372.3921 | D45: 18474.47842 | E45: 18474.47842 | F45: 417383.9324 | G45: =IF(B45="","",IF(B45>=Support!$A$7,IF(VLOOKUP(B45,Support!$A$4:$F$47,2)>0,VLOOKUP(B45,Support!$A$4:$F$47,3)-Support!$J$7,0),0)) -> 0 | H45: =IF(B45="","",IF(B45<Support!$H$7,0,VLOOKUP(B45,Support!$H$4:$M$47,3))) -> 14457.52478 | I45: =IF(B45="","",IF(B45>=Support!$H$7,VLOOKUP(B45,Support!$H$4:$M$47,6),0)) -> 75788.32352 | J45: =IF(B45="","",IF(B45<Support!$A$7,0,VLOOKUP(B45,Support!$A$4:$F$47,6))) -> 75788.32352 | K45: 4.518492192 | L45: 0.8204650957 | P45: 219792.5217 | Q45: 92372.3921 | R45: 0.1889907188 | S45: 9 | T45: =IF(ISERR((IF(Support!$A$7=B45,Support!$B$7,IF(T44>0,T44*(1+$F$34),0)))),"",(IF(Support!$A$7=B45,Support!$B$7,IF(T44>0,T44*(1+$F$34),0)))) -> 
B46: 54 | C46: 93757.97798 | D46: 18751.5956 | E46: 18751.5956 | F46: 466665.015 | G46: =IF(B46="","",IF(B46>=Support!$A$7,IF(VLOOKUP(B46,Support!$A$4:$F$47,2)>0,VLOOKUP(B46,Support!$A$4:$F$47,3)-Support!$J$7,0),0)) -> 0 | H46: =IF(B46="","",IF(B46<Support!$H$7,0,VLOOKUP(B46,Support!$H$4:$M$47,3))) -> 14457.52478 | I46: =IF(B46="","",IF(B46>=Support!$H$7,VLOOKUP(B46,Support!$H$4:$M$47,6),0)) -> 64362.33168 | J46: =IF(B46="","",IF(B46<Support!$A$7,0,VLOOKUP(B46,Support!$A$4:$F$47,6))) -> 64362.33168 | K46: 4.977336596 | L46: 0.6864731201 | P46: 255242.2056 | Q46: 93757.97798 | R46: 0.1861977525 | S46: 10 | T46: =IF(ISERR((IF(Support!$A$7=B46,Support!$B$7,IF(T45>0,T45*(1+$F$34),0)))),"",(IF(Support!$A$7=B46,Support!$B$7,IF(T45>0,T45*(1+$F$34),0)))) -> 
B47: 55 | C47: 95164.34765 | D47: 19032.86953 | E47: 19032.86953 | F47: 519696.7364 | G47: =IF(B47="","",IF(B47>=Support!$A$7,IF(VLOOKUP(B47,Support!$A$4:$F$47,2)>0,VLOOKUP(B47,Support!$A$4:$F$47,3)-Support!$J$7,0),0)) -> 0 | H47: =IF(B47="","",IF(B47<Support!$H$7,0,VLOOKUP(B47,Support!$H$4:$M$47,3))) -> 14457.52478 | I47: =IF(B47="","",IF(B47>=Support!$H$7,VLOOKUP(B47,Support!$H$4:$M$47,6),0)) -> 52479.30017 | J47: =IF(B47="","",IF(B47<Support!$A$7,0,VLOOKUP(B47,Support!$A$4:$F$47,6))) -> 52479.30017 | K47: 5.46104449 | L47: 0.5514596743 | P47: 293474.3303 | Q47: 95164.34765 | R47: 0.1834460616 | S47: 11 | T47: =IF(ISERR((IF(Support!$A$7=B47,Support!$B$7,IF(T46>0,T46*(1+$F$34),0)))),"",(IF(Support!$A$7=B47,Support!$B$7,IF(T46>0,T46*(1+$F$34),0)))) -> 
B48: 56 | C48: 96591.81287 | D48: 19318.36257 | E48: 19318.36257 | F48: 576746.1559 | G48: =IF(B48="","",IF(B48>=Support!$A$7,IF(VLOOKUP(B48,Support!$A$4:$F$47,2)>0,VLOOKUP(B48,Support!$A$4:$F$47,3)-Support!$J$7,0),0)) -> 0 | H48: =IF(B48="","",IF(B48<Support!$H$7,0,VLOOKUP(B48,Support!$H$4:$M$47,3))) -> 14457.52478 | I48: =IF(B48="","",IF(B48>=Support!$H$7,VLOOKUP(B48,Support!$H$4:$M$47,6),0)) -> 40120.94739 | J48: =IF(B48="","",IF(B48<Support!$A$7,0,VLOOKUP(B48,Support!$A$4:$F$47,6))) -> 40120.94739 | K48: 5.970963157 | L48: 0.4153659218 | P48: 334688.1814 | Q48: 96591.81287 | R48: 0.1807350361 | S48: 12 | T48: =IF(ISERR((IF(Support!$A$7=B48,Support!$B$7,IF(T47>0,T47*(1+$F$34),0)))),"",(IF(Support!$A$7=B48,Support!$B$7,IF(T47>0,T47*(1+$F$34),0)))) -> 
B49: 57 | C49: 98040.69006 | D49: 19608.13801 | E49: 19608.13801 | F49: 638099.0945 | G49: =IF(B49="","",IF(B49>=Support!$A$7,IF(VLOOKUP(B49,Support!$A$4:$F$47,2)>0,VLOOKUP(B49,Support!$A$4:$F$47,3)-Support!$J$7,0),0)) -> 0 | H49: =IF(B49="","",IF(B49<Support!$H$7,0,VLOOKUP(B49,Support!$H$4:$M$47,3))) -> 14457.52478 | I49: =IF(B49="","",IF(B49>=Support!$H$7,VLOOKUP(B49,Support!$H$4:$M$47,6),0)) -> 27268.2605 | J49: =IF(B49="","",IF(B49<Support!$A$7,0,VLOOKUP(B49,Support!$A$4:$F$47,6))) -> 27268.2605 | K49: 6.508512885 | L49: 0.2781320744 | P49: 379097.0618 | Q49: 98040.69006 | R49: 0.178064075 | S49: 13 | T49: =IF(ISERR((IF(Support!$A$7=B49,Support!$B$7,IF(T48>0,T48*(1+$F$34),0)))),"",(IF(Support!$A$7=B49,Support!$B$7,IF(T48>0,T48*(1+$F$34),0)))) -> 
B50: 58 | C50: 99511.30041 | D50: 19902.26008 | E50: 19902.26008 | F50: 704061.4494 | G50: =IF(B50="","",IF(B50>=Support!$A$7,IF(VLOOKUP(B50,Support!$A$4:$F$47,2)>0,VLOOKUP(B50,Support!$A$4:$F$47,3)-Support!$J$7,0),0)) -> 0 | H50: =IF(B50="","",IF(B50<Support!$H$7,0,VLOOKUP(B50,Support!$H$4:$M$47,3))) -> 14457.52478 | I50: =IF(B50="","",IF(B50>=Support!$H$7,VLOOKUP(B50,Support!$H$4:$M$47,6),0)) -> 13901.46614 | J50: =IF(B50="","",IF(B50<Support!$A$7,0,VLOOKUP(B50,Support!$A$4:$F$47,6))) -> 13901.46614 | K50: 7.075190923 | L50: 0.1396973618 | P50: 426929.2744 | Q50: 99511.30041 | R50: 0.1754325862 | S50: 14 | T50: =IF(ISERR((IF(Support!$A$7=B50,Support!$B$7,IF(T49>0,T49*(1+$F$34),0)))),"",(IF(Support!$A$7=B50,Support!$B$7,IF(T49>0,T49*(1+$F$34),0)))) -> 
B51: 59 | C51: 101003.9699 | D51: 20200.79398 | E51: 20200.79398 | F51: 774960.6004 | G51: =IF(B51="","",IF(B51>=Support!$A$7,IF(VLOOKUP(B51,Support!$A$4:$F$47,2)>0,VLOOKUP(B51,Support!$A$4:$F$47,3)-Support!$J$7,0),0)) -> -1.546140993e-10 | H51: =IF(B51="","",IF(B51<Support!$H$7,0,VLOOKUP(B51,Support!$H$4:$M$47,3))) -> 14457.52478 | I51: =IF(B51="","",IF(B51>=Support!$H$7,VLOOKUP(B51,Support!$H$4:$M$47,6),0)) -> 0 | J51: =IF(B51="","",IF(B51<Support!$A$7,0,VLOOKUP(B51,Support!$A$4:$F$47,6))) -> 0 | K51: 7.672575653 | L51: 0 | P51: 478429.1732 | Q51: 101003.9699 | R51: 0.1728399864 | S51: 15 | T51: =IF(ISERR((IF(Support!$A$7=B51,Support!$B$7,IF(T50>0,T50*(1+$F$34),0)))),"",(IF(Support!$A$7=B51,Support!$B$7,IF(T50>0,T50*(1+$F$34),0)))) -> 
B52: 60 | C52: 102519.0295 | D52: 20503.80589 | E52: 20503.80589 | F52: 851146.9148 | G52: =IF(B52="","",IF(B52>=Support!$A$7,IF(VLOOKUP(B52,Support!$A$4:$F$47,2)>0,VLOOKUP(B52,Support!$A$4:$F$47,3)-Support!$J$7,0),0)) -> 0 | H52: =IF(B52="","",IF(B52<Support!$H$7,0,VLOOKUP(B52,Support!$H$4:$M$47,3))) -> 0 | I52: =IF(B52="","",IF(B52>=Support!$H$7,VLOOKUP(B52,Support!$H$4:$M$47,6),0)) -> 0 | J52: =IF(B52="","",IF(B52<Support!$A$7,0,VLOOKUP(B52,Support!$A$4:$F$47,6))) -> 0 | K52: 8.302330984 | L52: 0 | P52: 533858.2876 | Q52: 102519.0295 | R52: 0 | S52: 16 | T52: =IF(ISERR((IF(Support!$A$7=B52,Support!$B$7,IF(T51>0,T51*(1+$F$34),0)))),"",(IF(Support!$A$7=B52,Support!$B$7,IF(T51>0,T51*(1+$F$34),0)))) -> 
B53: 61 | C53: 104056.8149 | D53: 20811.36298 | E53: 20811.36298 | F53: 932995.3572 | G53: =IF(B53="","",IF(B53>=Support!$A$7,IF(VLOOKUP(B53,Support!$A$4:$F$47,2)>0,VLOOKUP(B53,Support!$A$4:$F$47,3)-Support!$J$7,0),0)) -> 0 | H53: =IF(B53="","",IF(B53<Support!$H$7,0,VLOOKUP(B53,Support!$H$4:$M$47,3))) -> 0 | I53: =IF(B53="","",IF(B53>=Support!$H$7,VLOOKUP(B53,Support!$H$4:$M$47,6),0)) -> 0 | J53: =IF(B53="","",IF(B53<Support!$A$7,0,VLOOKUP(B53,Support!$A$4:$F$47,6))) -> 0 | K53: 8.966210988 | L53: 0 | P53: 593496.5261 | Q53: 104056.8149 | R53: 0 | S53: 17 | T53: =IF(ISERR((IF(Support!$A$7=B53,Support!$B$7,IF(T52>0,T52*(1+$F$34),0)))),"",(IF(Support!$A$7=B53,Support!$B$7,IF(T52>0,T52*(1+$F$34),0)))) -> 
B54: 62 | C54: 105617.6671 | D54: 21123.53343 | E54: 21123.53343 | F54: 1020907.213 | G54: =IF(B54="","",IF(B54>=Support!$A$7,IF(VLOOKUP(B54,Support!$A$4:$F$47,2)>0,VLOOKUP(B54,Support!$A$4:$F$47,3)-Support!$J$7,0),0)) -> 0 | H54: =IF(B54="","",IF(B54<Support!$H$7,0,VLOOKUP(B54,Support!$H$4:$M$47,3))) -> 0 | I54: =IF(B54="","",IF(B54>=Support!$H$7,VLOOKUP(B54,Support!$H$4:$M$47,6),0)) -> 0 | J54: =IF(B54="","",IF(B54<Support!$A$7,0,VLOOKUP(B54,Support!$A$4:$F$47,6))) -> 0 | K54: 9.666064785 | L54: 0 | P54: 657643.4637 | Q54: 105617.6671 | R54: 0 | S54: 18 | T54: =IF(ISERR((IF(Support!$A$7=B54,Support!$B$7,IF(T53>0,T53*(1+$F$34),0)))),"",(IF(Support!$A$7=B54,Support!$B$7,IF(T53>0,T53*(1+$F$34),0)))) -> 
B55: 63 | C55: 107201.9321 | D55: 21440.38643 | E55: 21440.38643 | F55: 1115311.931 | G55: =IF(B55="","",IF(B55>=Support!$A$7,IF(VLOOKUP(B55,Support!$A$4:$F$47,2)>0,VLOOKUP(B55,Support!$A$4:$F$47,3)-Support!$J$7,0),0)) -> 0 | H55: =IF(B55="","",IF(B55<Support!$H$7,0,VLOOKUP(B55,Support!$H$4:$M$47,3))) -> 0 | I55: =IF(B55="","",IF(B55>=Support!$H$7,VLOOKUP(B55,Support!$H$4:$M$47,6),0)) -> 0 | J55: =IF(B55="","",IF(B55<Support!$A$7,0,VLOOKUP(B55,Support!$A$4:$F$47,6))) -> 0 | K55: 10.4038417 | L55: 0 | P55: 726619.7197 | Q55: 107201.9321 | R55: 0 | S55: 19 | T55: =IF(ISERR((IF(Support!$A$7=B55,Support!$B$7,IF(T54>0,T54*(1+$F$34),0)))),"",(IF(Support!$A$7=B55,Support!$B$7,IF(T54>0,T54*(1+$F$34),0)))) -> 
B56: 64 | C56: 108809.9611 | D56: 21761.99222 | E56: 21761.99222 | F56: 1216669.098 | G56: =IF(B56="","",IF(B56>=Support!$A$7,IF(VLOOKUP(B56,Support!$A$4:$F$47,2)>0,VLOOKUP(B56,Support!$A$4:$F$47,3)-Support!$J$7,0),0)) -> 0 | H56: =IF(B56="","",IF(B56<Support!$H$7,0,VLOOKUP(B56,Support!$H$4:$M$47,3))) -> 0 | I56: =IF(B56="","",IF(B56>=Support!$H$7,VLOOKUP(B56,Support!$H$4:$M$47,6),0)) -> 0 | J56: =IF(B56="","",IF(B56<Support!$A$7,0,VLOOKUP(B56,Support!$A$4:$F$47,6))) -> 0 | K56: 11.18159666 | L56: 0 | P56: 800768.4317 | Q56: 108809.9611 | R56: 0 | S56: 20 | T56: =IF(ISERR((IF(Support!$A$7=B56,Support!$B$7,IF(T55>0,T55*(1+$F$34),0)))),"",(IF(Support!$A$7=B56,Support!$B$7,IF(T55>0,T55*(1+$F$34),0)))) -> 
B57: 65 | C57: 110442.1105 | D57: 22088.42211 | E57: 22088.42211 | F57: 1325470.547 | G57: =IF(B57="","",IF(B57>=Support!$A$7,IF(VLOOKUP(B57,Support!$A$4:$F$47,2)>0,VLOOKUP(B57,Support!$A$4:$F$47,3)-Support!$J$7,0),0)) -> 0 | H57: =IF(B57="","",IF(B57<Support!$H$7,0,VLOOKUP(B57,Support!$H$4:$M$47,3))) -> 0 | I57: =IF(B57="","",IF(B57>=Support!$H$7,VLOOKUP(B57,Support!$H$4:$M$47,6),0)) -> 0 | J57: =IF(B57="","",IF(B57<Support!$A$7,0,VLOOKUP(B57,Support!$A$4:$F$47,6))) -> 0 | K57: 12.00149599 | L57: 0 | P57: 880456.8336 | Q57: 110442.1105 | R57: 0 | S57: 21 | T57: =IF(ISERR((IF(Support!$A$7=B57,Support!$B$7,IF(T56>0,T56*(1+$F$34),0)))),"",(IF(Support!$A$7=B57,Support!$B$7,IF(T56>0,T56*(1+$F$34),0)))) -> 
B58: 66 | C58: 0 | D58: 0 | E58: 0 | F58: 1418253.485 | G58: =IF(B58="","",IF(B58>=Support!$A$7,IF(VLOOKUP(B58,Support!$A$4:$F$47,2)>0,VLOOKUP(B58,Support!$A$4:$F$47,3)-Support!$J$7,0),0)) -> 0 | H58: =IF(B58="","",IF(B58<Support!$H$7,0,VLOOKUP(B58,Support!$H$4:$M$47,3))) -> 0 | I58: =IF(B58="","",IF(B58>=Support!$H$7,VLOOKUP(B58,Support!$H$4:$M$47,6),0)) -> 0 | J58: =IF(B58="","",IF(B58<Support!$A$7,0,VLOOKUP(B58,Support!$A$4:$F$47,6))) -> 0 | K58: None | L58: None | P58: 942088.8119 | Q58: 0 | S58: 22 | T58: =IF(ISERR((IF(Support!$A$7=B58,Support!$B$7,IF(T57>0,T57*(1+$F$34),0)))),"",(IF(Support!$A$7=B58,Support!$B$7,IF(T57>0,T57*(1+$F$34),0)))) -> 
B59: 67 | C59: 0 | D59: 0 | E59: 0 | F59: 1517531.229 | G59: =IF(B59="","",IF(B59>=Support!$A$7,IF(VLOOKUP(B59,Support!$A$4:$F$47,2)>0,VLOOKUP(B59,Support!$A$4:$F$47,3)-Support!$J$7,0),0)) -> 0 | H59: =IF(B59="","",IF(B59<Support!$H$7,0,VLOOKUP(B59,Support!$H$4:$M$47,3))) -> 0 | I59: =IF(B59="","",IF(B59>=Support!$H$7,VLOOKUP(B59,Support!$H$4:$M$47,6),0)) -> 0 | J59: =IF(B59="","",IF(B59<Support!$A$7,0,VLOOKUP(B59,Support!$A$4:$F$47,6))) -> 0 | K59: None | L59: None | P59: 1008035.029 | Q59: 0 | S59: 23 | T59: =IF(ISERR((IF(Support!$A$7=B59,Support!$B$7,IF(T58>0,T58*(1+$F$34),0)))),"",(IF(Support!$A$7=B59,Support!$B$7,IF(T58>0,T58*(1+$F$34),0)))) -> 
B60: 68 | C60: 0 | D60: 0 | E60: 0 | F60: 1623758.415 | G60: =IF(B60="","",IF(B60>=Support!$A$7,IF(VLOOKUP(B60,Support!$A$4:$F$47,2)>0,VLOOKUP(B60,Support!$A$4:$F$47,3)-Support!$J$7,0),0)) -> 0 | H60: =IF(B60="","",IF(B60<Support!$H$7,0,VLOOKUP(B60,Support!$H$4:$M$47,3))) -> 0 | I60: =IF(B60="","",IF(B60>=Support!$H$7,VLOOKUP(B60,Support!$H$4:$M$47,6),0)) -> 0 | J60: =IF(B60="","",IF(B60<Support!$A$7,0,VLOOKUP(B60,Support!$A$4:$F$47,6))) -> 0 | K60: None | L60: None | P60: 1078597.481 | Q60: 0 | S60: 24 | T60: =IF(ISERR((IF(Support!$A$7=B60,Support!$B$7,IF(T59>0,T59*(1+$F$34),0)))),"",(IF(Support!$A$7=B60,Support!$B$7,IF(T59>0,T59*(1+$F$34),0)))) -> 
B61: 69 | C61: 0 | D61: 0 | E61: 0 | F61: 1737421.504 | G61: =IF(B61="","",IF(B61>=Support!$A$7,IF(VLOOKUP(B61,Support!$A$4:$F$47,2)>0,VLOOKUP(B61,Support!$A$4:$F$47,3)-Support!$J$7,0),0)) -> 0 | H61: =IF(B61="","",IF(B61<Support!$H$7,0,VLOOKUP(B61,Support!$H$4:$M$47,3))) -> 0 | I61: =IF(B61="","",IF(B61>=Support!$H$7,VLOOKUP(B61,Support!$H$4:$M$47,6),0)) -> 0 | J61: =IF(B61="","",IF(B61<Support!$A$7,0,VLOOKUP(B61,Support!$A$4:$F$47,6))) -> 0 | K61: None | L61: None | P61: 1154099.304 | Q61: 0 | S61: 25 | T61: =IF(ISERR((IF(Support!$A$7=B61,Support!$B$7,IF(T60>0,T60*(1+$F$34),0)))),"",(IF(Support!$A$7=B61,Support!$B$7,IF(T60>0,T60*(1+$F$34),0)))) -> 
B62: 70 | C62: 0 | D62: 0 | E62: 0 | F62: 1859041.009 | G62: =IF(B62="","",IF(B62>=Support!$A$7,IF(VLOOKUP(B62,Support!$A$4:$F$47,2)>0,VLOOKUP(B62,Support!$A$4:$F$47,3)-Support!$J$7,0),0)) -> 0 | H62: =IF(B62="","",IF(B62<Support!$H$7,0,VLOOKUP(B62,Support!$H$4:$M$47,3))) -> 0 | I62: =IF(B62="","",IF(B62>=Support!$H$7,VLOOKUP(B62,Support!$H$4:$M$47,6),0)) -> 0 | J62: =IF(B62="","",IF(B62<Support!$A$7,0,VLOOKUP(B62,Support!$A$4:$F$47,6))) -> 0 | K62: None | L62: None | P62: 1234886.256 | Q62: 0 | S62: 26 | T62: =IF(ISERR((IF(Support!$A$7=B62,Support!$B$7,IF(T61>0,T61*(1+$F$34),0)))),"",(IF(Support!$A$7=B62,Support!$B$7,IF(T61>0,T61*(1+$F$34),0)))) -> 
B63: 71 | C63: 0 | D63: 0 | E63: 0 | F63: 1989173.88 | G63: =IF(B63="","",IF(B63>=Support!$A$7,IF(VLOOKUP(B63,Support!$A$4:$F$47,2)>0,VLOOKUP(B63,Support!$A$4:$F$47,3)-Support!$J$7,0),0)) -> 0 | H63: =IF(B63="","",IF(B63<Support!$H$7,0,VLOOKUP(B63,Support!$H$4:$M$47,3))) -> 0 | I63: =IF(B63="","",IF(B63>=Support!$H$7,VLOOKUP(B63,Support!$H$4:$M$47,6),0)) -> 0 | J63: =IF(B63="","",IF(B63<Support!$A$7,0,VLOOKUP(B63,Support!$A$4:$F$47,6))) -> 0 | K63: None | L63: None | P63: 1321328.294 | Q63: 0 | S63: 27 | T63: =IF(ISERR((IF(Support!$A$7=B63,Support!$B$7,IF(T62>0,T62*(1+$F$34),0)))),"",(IF(Support!$A$7=B63,Support!$B$7,IF(T62>0,T62*(1+$F$34),0)))) -> 
B64: 72 | C64: 0 | D64: 0 | E64: 0 | F64: 2128416.052 | G64: =IF(B64="","",IF(B64>=Support!$A$7,IF(VLOOKUP(B64,Support!$A$4:$F$47,2)>0,VLOOKUP(B64,Support!$A$4:$F$47,3)-Support!$J$7,0),0)) -> 0 | H64: =IF(B64="","",IF(B64<Support!$H$7,0,VLOOKUP(B64,Support!$H$4:$M$47,3))) -> 0 | I64: =IF(B64="","",IF(B64>=Support!$H$7,VLOOKUP(B64,Support!$H$4:$M$47,6),0)) -> 0 | J64: =IF(B64="","",IF(B64<Support!$A$7,0,VLOOKUP(B64,Support!$A$4:$F$47,6))) -> 0 | K64: None | L64: None | P64: 1413821.274 | Q64: 0 | S64: 28 | T64: =IF(ISERR((IF(Support!$A$7=B64,Support!$B$7,IF(T63>0,T63*(1+$F$34),0)))),"",(IF(Support!$A$7=B64,Support!$B$7,IF(T63>0,T63*(1+$F$34),0)))) -> 
B65: 73 | C65: 0 | D65: 0 | E65: 0 | F65: 2277405.175 | G65: =IF(B65="","",IF(B65>=Support!$A$7,IF(VLOOKUP(B65,Support!$A$4:$F$47,2)>0,VLOOKUP(B65,Support!$A$4:$F$47,3)-Support!$J$7,0),0)) -> 0 | H65: =IF(B65="","",IF(B65<Support!$H$7,0,VLOOKUP(B65,Support!$H$4:$M$47,3))) -> 0 | I65: =IF(B65="","",IF(B65>=Support!$H$7,VLOOKUP(B65,Support!$H$4:$M$47,6),0)) -> 0 | J65: =IF(B65="","",IF(B65<Support!$A$7,0,VLOOKUP(B65,Support!$A$4:$F$47,6))) -> 0 | K65: None | L65: None | P65: 1512788.763 | Q65: 0 | S65: 29 | T65: =IF(ISERR((IF(Support!$A$7=B65,Support!$B$7,IF(T64>0,T64*(1+$F$34),0)))),"",(IF(Support!$A$7=B65,Support!$B$7,IF(T64>0,T64*(1+$F$34),0)))) -> 
B66: 74 | C66: 0 | D66: 0 | E66: 0 | F66: 2436823.538 | G66: =IF(B66="","",IF(B66>=Support!$A$7,IF(VLOOKUP(B66,Support!$A$4:$F$47,2)>0,VLOOKUP(B66,Support!$A$4:$F$47,3)-Support!$J$7,0),0)) -> 0 | H66: =IF(B66="","",IF(B66<Support!$H$7,0,VLOOKUP(B66,Support!$H$4:$M$47,3))) -> 0 | I66: =IF(B66="","",IF(B66>=Support!$H$7,VLOOKUP(B66,Support!$H$4:$M$47,6),0)) -> 0 | J66: =IF(B66="","",IF(B66<Support!$A$7,0,VLOOKUP(B66,Support!$A$4:$F$47,6))) -> 0 | K66: None | L66: None | P66: 1618683.977 | Q66: 0 | S66: 30 | T66: =IF(ISERR((IF(Support!$A$7=B66,Support!$B$7,IF(T65>0,T65*(1+$F$34),0)))),"",(IF(Support!$A$7=B66,Support!$B$7,IF(T65>0,T65*(1+$F$34),0)))) -> 
B67: 75 | C67: 0 | D67: 0 | E67: 0 | F67: 2607401.185 | G67: =IF(B67="","",IF(B67>=Support!$A$7,IF(VLOOKUP(B67,Support!$A$4:$F$47,2)>0,VLOOKUP(B67,Support!$A$4:$F$47,3)-Support!$J$7,0),0)) -> 0 | H67: =IF(B67="","",IF(B67<Support!$H$7,0,VLOOKUP(B67,Support!$H$4:$M$47,3))) -> 0 | I67: =IF(B67="","",IF(B67>=Support!$H$7,VLOOKUP(B67,Support!$H$4:$M$47,6),0)) -> 0 | J67: =IF(B67="","",IF(B67<Support!$A$7,0,VLOOKUP(B67,Support!$A$4:$F$47,6))) -> 0 | K67: None | L67: None | P67: 1731991.855 | Q67: 0 | S67: 31 | T67: =IF(ISERR((IF(Support!$A$7=B67,Support!$B$7,IF(T66>0,T66*(1+$F$34),0)))),"",(IF(Support!$A$7=B67,Support!$B$7,IF(T66>0,T66*(1+$F$34),0)))) -> 
B68: 76 | C68: 0 | D68: 0 | E68: 0 | F68: 2789919.268 | G68: =IF(B68="","",IF(B68>=Support!$A$7,IF(VLOOKUP(B68,Support!$A$4:$F$47,2)>0,VLOOKUP(B68,Support!$A$4:$F$47,3)-Support!$J$7,0),0)) -> 0 | H68: =IF(B68="","",IF(B68<Support!$H$7,0,VLOOKUP(B68,Support!$H$4:$M$47,3))) -> 0 | I68: =IF(B68="","",IF(B68>=Support!$H$7,VLOOKUP(B68,Support!$H$4:$M$47,6),0)) -> 0 | J68: =IF(B68="","",IF(B68<Support!$A$7,0,VLOOKUP(B68,Support!$A$4:$F$47,6))) -> 0 | K68: None | L68: None | P68: 1853231.285 | Q68: 0 | S68: 32 | T68: =IF(ISERR((IF(Support!$A$7=B68,Support!$B$7,IF(T67>0,T67*(1+$F$34),0)))),"",(IF(Support!$A$7=B68,Support!$B$7,IF(T67>0,T67*(1+$F$34),0)))) -> 
B69: 77 | C69: 0 | D69: 0 | E69: 0 | F69: 2985213.617 | G69: =IF(B69="","",IF(B69>=Support!$A$7,IF(VLOOKUP(B69,Support!$A$4:$F$47,2)>0,VLOOKUP(B69,Support!$A$4:$F$47,3)-Support!$J$7,0),0)) -> 0 | H69: =IF(B69="","",IF(B69<Support!$H$7,0,VLOOKUP(B69,Support!$H$4:$M$47,3))) -> 0 | I69: =IF(B69="","",IF(B69>=Support!$H$7,VLOOKUP(B69,Support!$H$4:$M$47,6),0)) -> 0 | J69: =IF(B69="","",IF(B69<Support!$A$7,0,VLOOKUP(B69,Support!$A$4:$F$47,6))) -> 0 | K69: None | L69: None | P69: 1982957.475 | Q69: 0 | S69: 33 | T69: =IF(ISERR((IF(Support!$A$7=B69,Support!$B$7,IF(T68>0,T68*(1+$F$34),0)))),"",(IF(Support!$A$7=B69,Support!$B$7,IF(T68>0,T68*(1+$F$34),0)))) -> 
B70: 78 | C70: =IF(B70<=$F$15,C69*(1+$F$14),0) -> 0 | D70: 0 | E70: 0 | F70: 3194178.57 | G70: =IF(B70="","",IF(B70>=Support!$A$7,IF(VLOOKUP(B70,Support!$A$4:$F$47,2)>0,VLOOKUP(B70,Support!$A$4:$F$47,3)-Support!$J$7,0),0)) -> 0 | H70: =IF(B70="","",IF(B70<Support!$H$7,0,VLOOKUP(B70,Support!$H$4:$M$47,3))) -> 0 | I70: =IF(B70="","",IF(B70>=Support!$H$7,VLOOKUP(B70,Support!$H$4:$M$47,6),0)) -> 0 | J70: =IF(B70="","",IF(B70<Support!$A$7,0,VLOOKUP(B70,Support!$A$4:$F$47,6))) -> 0 | K70: None | L70: None | P70: =(P69+E70)*(1+$F$23)/(1+$F$24) -> 2121764.498 | Q70: =C70/(1+$F$24)^(S70) -> 0 | S70: 34 | T70: =IF(ISERR((IF(Support!$A$7=B70,Support!$B$7,IF(T69>0,T69*(1+$F$34),0)))),"",(IF(Support!$A$7=B70,Support!$B$7,IF(T69>0,T69*(1+$F$34),0)))) -> 
B71: =IF(B70="","",IF(B70+1>$F$15+$F$16,"",B70+1)) -> 79 | C71: 0 | D71: 0 | E71: =IF(B71="","",$F$21*C71-G71) -> 0 | F71: =IF(B71="","",(E71+F70)*(1+$F$23)) -> 3417771.07 | G71: =IF(B71="","",IF(B71>=Support!$A$7,IF(VLOOKUP(B71,Support!$A$4:$F$47,2)>0,VLOOKUP(B71,Support!$A$4:$F$47,3)-Support!$J$7,0),0)) -> 0 | H71: =IF(B71="","",IF(B71<Support!$H$7,0,VLOOKUP(B71,Support!$H$4:$M$47,3))) -> 0 | I71: =IF(B71="","",IF(B71>=Support!$H$7,VLOOKUP(B71,Support!$H$4:$M$47,6),0)) -> 0 | J71: =IF(B71="","",IF(B71<Support!$A$7,0,VLOOKUP(B71,Support!$A$4:$F$47,6))) -> 0 | K71: None | L71: None | P71: 2270288.013 | Q71: 0 | R71: =IF(C71=0,"",IF(H71=0,0,(H71+$F$30)/C71)) ->  | S71: 35 | T71: =IF(ISERR((IF(Support!$A$7=B71,Support!$B$7,IF(T70>0,T70*(1+$F$34),0)))),"",(IF(Support!$A$7=B71,Support!$B$7,IF(T70>0,T70*(1+$F$34),0)))) -> 
B72: 80 | C72: 0 | D72: 0 | E72: 0 | F72: 3657015.045 | G72: =IF(B72="","",IF(B72>=Support!$A$7,IF(VLOOKUP(B72,Support!$A$4:$F$47,2)>0,VLOOKUP(B72,Support!$A$4:$F$47,3)-Support!$J$7,0),0)) -> 0 | H72: =IF(B72="","",IF(B72<Support!$H$7,0,VLOOKUP(B72,Support!$H$4:$M$47,3))) -> 0 | I72: =IF(B72="","",IF(B72>=Support!$H$7,VLOOKUP(B72,Support!$H$4:$M$47,6),0)) -> 0 | J72: =IF(B72="","",IF(B72<Support!$A$7,0,VLOOKUP(B72,Support!$A$4:$F$47,6))) -> 0 | K72: None | L72: None | P72: 2429208.174 | Q72: 0 | S72: 36 | T72: =IF(ISERR((IF(Support!$A$7=B72,Support!$B$7,IF(T71>0,T71*(1+$F$34),0)))),"",(IF(Support!$A$7=B72,Support!$B$7,IF(T71>0,T71*(1+$F$34),0)))) -> 
B73: 81 | C73: 0 | D73: 0 | E73: 0 | F73: 3913006.098 | G73: =IF(B73="","",IF(B73>=Support!$A$7,IF(VLOOKUP(B73,Support!$A$4:$F$47,2)>0,VLOOKUP(B73,Support!$A$4:$F$47,3)-Support!$J$7,0),0)) -> 0 | H73: =IF(B73="","",IF(B73<Support!$H$7,0,VLOOKUP(B73,Support!$H$4:$M$47,3))) -> 0 | I73: =IF(B73="","",IF(B73>=Support!$H$7,VLOOKUP(B73,Support!$H$4:$M$47,6),0)) -> 0 | J73: =IF(B73="","",IF(B73<Support!$A$7,0,VLOOKUP(B73,Support!$A$4:$F$47,6))) -> 0 | K73: None | L73: None | P73: 2599252.746 | Q73: 0 | S73: 37 | T73: =IF(ISERR((IF(Support!$A$7=B73,Support!$B$7,IF(T72>0,T72*(1+$F$34),0)))),"",(IF(Support!$A$7=B73,Support!$B$7,IF(T72>0,T72*(1+$F$34),0)))) -> 
B74: 82 | C74: 0 | D74: 0 | E74: 0 | F74: 4186916.525 | G74: =IF(B74="","",IF(B74>=Support!$A$7,IF(VLOOKUP(B74,Support!$A$4:$F$47,2)>0,VLOOKUP(B74,Support!$A$4:$F$47,3)-Support!$J$7,0),0)) -> 0 | H74: =IF(B74="","",IF(B74<Support!$H$7,0,VLOOKUP(B74,Support!$H$4:$M$47,3))) -> 0 | I74: =IF(B74="","",IF(B74>=Support!$H$7,VLOOKUP(B74,Support!$H$4:$M$47,6),0)) -> 0 | J74: =IF(B74="","",IF(B74<Support!$A$7,0,VLOOKUP(B74,Support!$A$4:$F$47,6))) -> 0 | K74: None | L74: None | P74: 2781200.439 | Q74: 0 | S74: 38 | T74: =IF(ISERR((IF(Support!$A$7=B74,Support!$B$7,IF(T73>0,T73*(1+$F$34),0)))),"",(IF(Support!$A$7=B74,Support!$B$7,IF(T73>0,T73*(1+$F$34),0)))) -> 
B75: 83 | C75: 0 | D75: 0 | E75: 0 | F75: 4480000.682 | G75: =IF(B75="","",IF(B75>=Support!$A$7,IF(VLOOKUP(B75,Support!$A$4:$F$47,2)>0,VLOOKUP(B75,Support!$A$4:$F$47,3)-Support!$J$7,0),0)) -> 0 | H75: =IF(B75="","",IF(B75<Support!$H$7,0,VLOOKUP(B75,Support!$H$4:$M$47,3))) -> 0 | I75: =IF(B75="","",IF(B75>=Support!$H$7,VLOOKUP(B75,Support!$H$4:$M$47,6),0)) -> 0 | J75: =IF(B75="","",IF(B75<Support!$A$7,0,VLOOKUP(B75,Support!$A$4:$F$47,6))) -> 0 | K75: None | L75: None | P75: 2975884.469 | Q75: 0 | S75: 39 | T75: =IF(ISERR((IF(Support!$A$7=B75,Support!$B$7,IF(T74>0,T74*(1+$F$34),0)))),"",(IF(Support!$A$7=B75,Support!$B$7,IF(T74>0,T74*(1+$F$34),0)))) -> 
B76: 84 | C76: 0 | D76: 0 | E76: 0 | F76: 4793600.729 | G76: =IF(B76="","",IF(B76>=Support!$A$7,IF(VLOOKUP(B76,Support!$A$4:$F$47,2)>0,VLOOKUP(B76,Support!$A$4:$F$47,3)-Support!$J$7,0),0)) -> 0 | H76: =IF(B76="","",IF(B76<Support!$H$7,0,VLOOKUP(B76,Support!$H$4:$M$47,3))) -> 0 | I76: =IF(B76="","",IF(B76>=Support!$H$7,VLOOKUP(B76,Support!$H$4:$M$47,6),0)) -> 0 | J76: =IF(B76="","",IF(B76<Support!$A$7,0,VLOOKUP(B76,Support!$A$4:$F$47,6))) -> 0 | K76: None | L76: None | P76: 3184196.382 | Q76: 0 | S76: 40 | T76: =IF(ISERR((IF(Support!$A$7=B76,Support!$B$7,IF(T75>0,T75*(1+$F$34),0)))),"",(IF(Support!$A$7=B76,Support!$B$7,IF(T75>0,T75*(1+$F$34),0)))) -> 
B77: 85 | C77: 0 | D77: 0 | E77: 0 | F77: 5129152.78 | G77: =IF(B77="","",IF(B77>=Support!$A$7,IF(VLOOKUP(B77,Support!$A$4:$F$47,2)>0,VLOOKUP(B77,Support!$A$4:$F$47,3)-Support!$J$7,0),0)) -> 0 | H77: =IF(B77="","",IF(B77<Support!$H$7,0,VLOOKUP(B77,Support!$H$4:$M$47,3))) -> 0 | I77: =IF(B77="","",IF(B77>=Support!$H$7,VLOOKUP(B77,Support!$H$4:$M$47,6),0)) -> 0 | J77: =IF(B77="","",IF(B77<Support!$A$7,0,VLOOKUP(B77,Support!$A$4:$F$47,6))) -> 0 | K77: None | L77: None | P77: 3407090.129 | Q77: 0 | S77: 41 | T77: =IF(ISERR((IF(Support!$A$7=B77,Support!$B$7,IF(T76>0,T76*(1+$F$34),0)))),"",(IF(Support!$A$7=B77,Support!$B$7,IF(T76>0,T76*(1+$F$34),0)))) -> 
B78: 86 | C78: 0 | D78: =C78*Annual_Savings -> 0 | E78: 0 | F78: 5488193.475 | G78: =IF(B78="","",IF(B78>=Support!$A$7,IF(VLOOKUP(B78,Support!$A$4:$F$47,2)>0,VLOOKUP(B78,Support!$A$4:$F$47,3)-Support!$J$7,0),0)) -> 0 | H78: =IF(B78="","",IF(B78<Support!$H$7,0,VLOOKUP(B78,Support!$H$4:$M$47,3))) -> 0 | I78: =IF(B78="","",IF(B78>=Support!$H$7,VLOOKUP(B78,Support!$H$4:$M$47,6),0)) -> 0 | J78: =IF(B78="","",IF(B78<Support!$A$7,0,VLOOKUP(B78,Support!$A$4:$F$47,6))) -> 0 | K78: =IF(B78="","",IF(C78>0,F78/C78,"None")) -> None | L78: =IF(B78="","",IF(C78>0,J78/C78,"None")) -> None | P78: 3645586.438 | Q78: 0 | S78: 42 | T78: =IF(ISERR((IF(Support!$A$7=B78,Support!$B$7,IF(T77>0,T77*(1+$F$34),0)))),"",(IF(Support!$A$7=B78,Support!$B$7,IF(T77>0,T77*(1+$F$34),0)))) -> 
B79: 87 | C79: 0 | D79: 0 | E79: 0 | F79: 5872367.018 | G79: =IF(B79="","",IF(B79>=Support!$A$7,IF(VLOOKUP(B79,Support!$A$4:$F$47,2)>0,VLOOKUP(B79,Support!$A$4:$F$47,3)-Support!$J$7,0),0)) -> 0 | H79: =IF(B79="","",IF(B79<Support!$H$7,0,VLOOKUP(B79,Support!$H$4:$M$47,3))) -> 0 | I79: =IF(B79="","",IF(B79>=Support!$H$7,VLOOKUP(B79,Support!$H$4:$M$47,6),0)) -> 0 | J79: =IF(B79="","",IF(B79<Support!$A$7,0,VLOOKUP(B79,Support!$A$4:$F$47,6))) -> 0 | K79: None | L79: None | P79: 3900777.488 | Q79: 0 | S79: 43 | T79: =IF(ISERR((IF(Support!$A$7=B79,Support!$B$7,IF(T78>0,T78*(1+$F$34),0)))),"",(IF(Support!$A$7=B79,Support!$B$7,IF(T78>0,T78*(1+$F$34),0)))) -> 
B80: 88 | C80: 0 | D80: 0 | E80: 0 | F80: 6283432.709 | G80: =IF(B80="","",IF(B80>=Support!$A$7,IF(VLOOKUP(B80,Support!$A$4:$F$47,2)>0,VLOOKUP(B80,Support!$A$4:$F$47,3)-Support!$J$7,0),0)) -> 0 | H80: =IF(B80="","",IF(B80<Support!$H$7,0,VLOOKUP(B80,Support!$H$4:$M$47,3))) -> 0 | I80: =IF(B80="","",IF(B80>=Support!$H$7,VLOOKUP(B80,Support!$H$4:$M$47,6),0)) -> 0 | J80: =IF(B80="","",IF(B80<Support!$A$7,0,VLOOKUP(B80,Support!$A$4:$F$47,6))) -> 0 | K80: None | L80: None | P80: 4173831.913 | Q80: 0 | S80: 44 | T80: =IF(ISERR((IF(Support!$A$7=B80,Support!$B$7,IF(T79>0,T79*(1+$F$34),0)))),"",(IF(Support!$A$7=B80,Support!$B$7,IF(T79>0,T79*(1+$F$34),0)))) -> 
B81: 89 | C81: 0 | D81: 0 | E81: 0 | F81: 6723272.999 | G81: =IF(B81="","",IF(B81>=Support!$A$7,IF(VLOOKUP(B81,Support!$A$4:$F$47,2)>0,VLOOKUP(B81,Support!$A$4:$F$47,3)-Support!$J$7,0),0)) -> 0 | H81: =IF(B81="","",IF(B81<Support!$H$7,0,VLOOKUP(B81,Support!$H$4:$M$47,3))) -> 0 | I81: =IF(B81="","",IF(B81>=Support!$H$7,VLOOKUP(B81,Support!$H$4:$M$47,6),0)) -> 0 | J81: =IF(B81="","",IF(B81<Support!$A$7,0,VLOOKUP(B81,Support!$A$4:$F$47,6))) -> 0 | K81: None | L81: None | P81: 4466000.147 | Q81: 0 | S81: 45 | T81: =IF(ISERR((IF(Support!$A$7=B81,Support!$B$7,IF(T80>0,T80*(1+$F$34),0)))),"",(IF(Support!$A$7=B81,Support!$B$7,IF(T80>0,T80*(1+$F$34),0)))) -> 
B82: 90 | C82: 0 | D82: 0 | E82: 0 | F82: 7193902.109 | G82: =IF(B82="","",IF(B82>=Support!$A$7,IF(VLOOKUP(B82,Support!$A$4:$F$47,2)>0,VLOOKUP(B82,Support!$A$4:$F$47,3)-Support!$J$7,0),0)) -> 0 | H82: =IF(B82="","",IF(B82<Support!$H$7,0,VLOOKUP(B82,Support!$H$4:$M$47,3))) -> 0 | I82: =IF(B82="","",IF(B82>=Support!$H$7,VLOOKUP(B82,Support!$H$4:$M$47,6),0)) -> 0 | J82: =IF(B82="","",IF(B82<Support!$A$7,0,VLOOKUP(B82,Support!$A$4:$F$47,6))) -> 0 | K82: None | L82: None | P82: 4778620.157 | Q82: 0 | S82: 46 | T82: =IF(ISERR((IF(Support!$A$7=B82,Support!$B$7,IF(T81>0,T81*(1+$F$34),0)))),"",(IF(Support!$A$7=B82,Support!$B$7,IF(T81>0,T81*(1+$F$34),0)))) -> 
B83: 91 | C83: 0 | D83: 0 | E83: 0 | F83: 7697475.257 | G83: =IF(B83="","",IF(B83>=Support!$A$7,IF(VLOOKUP(B83,Support!$A$4:$F$47,2)>0,VLOOKUP(B83,Support!$A$4:$F$47,3)-Support!$J$7,0),0)) -> 0 | H83: =IF(B83="","",IF(B83<Support!$H$7,0,VLOOKUP(B83,Support!$H$4:$M$47,3))) -> 0 | I83: =IF(B83="","",IF(B83>=Support!$H$7,VLOOKUP(B83,Support!$H$4:$M$47,6),0)) -> 0 | J83: =IF(B83="","",IF(B83<Support!$A$7,0,VLOOKUP(B83,Support!$A$4:$F$47,6))) -> 0 | K83: None | L83: None | P83: 5113123.568 | Q83: 0 | S83: 47 | T83: =IF(ISERR((IF(Support!$A$7=B83,Support!$B$7,IF(T82>0,T82*(1+$F$34),0)))),"",(IF(Support!$A$7=B83,Support!$B$7,IF(T82>0,T82*(1+$F$34),0)))) -> 
B84: 92 | C84: 0 | D84: 0 | E84: 0 | F84: 8236298.525 | G84: =IF(B84="","",IF(B84>=Support!$A$7,IF(VLOOKUP(B84,Support!$A$4:$F$47,2)>0,VLOOKUP(B84,Support!$A$4:$F$47,3)-Support!$J$7,0),0)) -> 0 | H84: =IF(B84="","",IF(B84<Support!$H$7,0,VLOOKUP(B84,Support!$H$4:$M$47,3))) -> 0 | I84: =IF(B84="","",IF(B84>=Support!$H$7,VLOOKUP(B84,Support!$H$4:$M$47,6),0)) -> 0 | J84: =IF(B84="","",IF(B84<Support!$A$7,0,VLOOKUP(B84,Support!$A$4:$F$47,6))) -> 0 | K84: None | L84: None | P84: 5471042.218 | Q84: 0 | S84: 48 | T84: =IF(ISERR((IF(Support!$A$7=B84,Support!$B$7,IF(T83>0,T83*(1+$F$34),0)))),"",(IF(Support!$A$7=B84,Support!$B$7,IF(T83>0,T83*(1+$F$34),0)))) -> 
B85: 93 | C85: 0 | D85: 0 | E85: 0 | F85: 8812839.421 | G85: =IF(B85="","",IF(B85>=Support!$A$7,IF(VLOOKUP(B85,Support!$A$4:$F$47,2)>0,VLOOKUP(B85,Support!$A$4:$F$47,3)-Support!$J$7,0),0)) -> 0 | H85: =IF(B85="","",IF(B85<Support!$H$7,0,VLOOKUP(B85,Support!$H$4:$M$47,3))) -> 0 | I85: =IF(B85="","",IF(B85>=Support!$H$7,VLOOKUP(B85,Support!$H$4:$M$47,6),0)) -> 0 | J85: =IF(B85="","",IF(B85<Support!$A$7,0,VLOOKUP(B85,Support!$A$4:$F$47,6))) -> 0 | K85: None | L85: None | P85: 5854015.173 | Q85: 0 | S85: 49 | T85: =IF(ISERR((IF(Support!$A$7=B85,Support!$B$7,IF(T84>0,T84*(1+$F$34),0)))),"",(IF(Support!$A$7=B85,Support!$B$7,IF(T84>0,T84*(1+$F$34),0)))) -> 
B86: 94 | C86: 0 | D86: 0 | E86: 0 | F86: 9429738.181 | G86: =IF(B86="","",IF(B86>=Support!$A$7,IF(VLOOKUP(B86,Support!$A$4:$F$47,2)>0,VLOOKUP(B86,Support!$A$4:$F$47,3)-Support!$J$7,0),0)) -> 0 | H86: =IF(B86="","",IF(B86<Support!$H$7,0,VLOOKUP(B86,Support!$H$4:$M$47,3))) -> 0 | I86: =IF(B86="","",IF(B86>=Support!$H$7,VLOOKUP(B86,Support!$H$4:$M$47,6),0)) -> 0 | J86: =IF(B86="","",IF(B86<Support!$A$7,0,VLOOKUP(B86,Support!$A$4:$F$47,6))) -> 0 | K86: None | L86: None | P86: 6263796.235 | Q86: 0 | S86: 50 | T86: =IF(ISERR((IF(Support!$A$7=B86,Support!$B$7,IF(T85>0,T85*(1+$F$34),0)))),"",(IF(Support!$A$7=B86,Support!$B$7,IF(T85>0,T85*(1+$F$34),0)))) -> 
B87: 95 | C87: 0 | D87: 0 | E87: 0 | F87: 10089819.85 | G87: =IF(B87="","",IF(B87>=Support!$A$7,IF(VLOOKUP(B87,Support!$A$4:$F$47,2)>0,VLOOKUP(B87,Support!$A$4:$F$47,3)-Support!$J$7,0),0)) -> 0 | H87: =IF(B87="","",IF(B87<Support!$H$7,0,VLOOKUP(B87,Support!$H$4:$M$47,3))) -> 0 | I87: =IF(B87="","",IF(B87>=Support!$H$7,VLOOKUP(B87,Support!$H$4:$M$47,6),0)) -> 0 | J87: =IF(B87="","",IF(B87<Support!$A$7,0,VLOOKUP(B87,Support!$A$4:$F$47,6))) -> 0 | K87: None | L87: None | P87: 6702261.971 | Q87: 0 | S87: 51 | T87: =IF(ISERR((IF(Support!$A$7=B87,Support!$B$7,IF(T86>0,T86*(1+$F$34),0)))),"",(IF(Support!$A$7=B87,Support!$B$7,IF(T86>0,T86*(1+$F$34),0)))) -> 
C88: 0 | D88: 0 | G88: =IF(B88="","",IF(B88>=Support!$A$7,IF(VLOOKUP(B88,Support!$A$4:$F$47,2)>0,VLOOKUP(B88,Support!$A$4:$F$47,3)-Support!$J$7,0),0)) ->  | H88: =IF(B88="","",IF(B88<Support!$H$7,0,VLOOKUP(B88,Support!$H$4:$M$47,3))) ->  | I88: =IF(B88="","",IF(B88>=Support!$H$7,VLOOKUP(B88,Support!$H$4:$M$47,6),0)) ->  | J88: =IF(B88="","",IF(B88<Support!$A$7,0,VLOOKUP(B88,Support!$A$4:$F$47,6))) ->  | Q88: 0 | S88: 52 | T88: =IF(ISERR((IF(Support!$A$7=B88,Support!$B$7,IF(T87>0,T87*(1+$F$34),0)))),"",(IF(Support!$A$7=B88,Support!$B$7,IF(T87>0,T87*(1+$F$34),0)))) -> 
C89: 0 | D89: 0 | G89: =IF(B89="","",IF(B89>=Support!$A$7,IF(VLOOKUP(B89,Support!$A$4:$F$47,2)>0,VLOOKUP(B89,Support!$A$4:$F$47,3)-Support!$J$7,0),0)) ->  | H89: =IF(B89="","",IF(B89<Support!$H$7,0,VLOOKUP(B89,Support!$H$4:$M$47,3))) ->  | I89: =IF(B89="","",IF(B89>=Support!$H$7,VLOOKUP(B89,Support!$H$4:$M$47,6),0)) ->  | J89: =IF(B89="","",IF(B89<Support!$A$7,0,VLOOKUP(B89,Support!$A$4:$F$47,6))) ->  | Q89: 0 | S89: 53 | T89: =IF(ISERR((IF(Support!$A$7=B89,Support!$B$7,IF(T88>0,T88*(1+$F$34),0)))),"",(IF(Support!$A$7=B89,Support!$B$7,IF(T88>0,T88*(1+$F$34),0)))) -> 
C90: 0 | D90: 0 | G90: =IF(B90="","",IF(B90>=Support!$A$7,IF(VLOOKUP(B90,Support!$A$4:$F$47,2)>0,VLOOKUP(B90,Support!$A$4:$F$47,3)-Support!$J$7,0),0)) ->  | H90: =IF(B90="","",IF(B90<Support!$H$7,0,VLOOKUP(B90,Support!$H$4:$M$47,3))) ->  | I90: =IF(B90="","",IF(B90>=Support!$H$7,VLOOKUP(B90,Support!$H$4:$M$47,6),0)) ->  | J90: =IF(B90="","",IF(B90<Support!$A$7,0,VLOOKUP(B90,Support!$A$4:$F$47,6))) ->  | Q90: 0 | S90: 54 | T90: =IF(ISERR((IF(Support!$A$7=B90,Support!$B$7,IF(T89>0,T89*(1+$F$34),0)))),"",(IF(Support!$A$7=B90,Support!$B$7,IF(T89>0,T89*(1+$F$34),0)))) -> 
C91: 0 | D91: 0 | G91: =IF(B91="","",IF(B91>=Support!$A$7,IF(VLOOKUP(B91,Support!$A$4:$F$47,2)>0,VLOOKUP(B91,Support!$A$4:$F$47,3)-Support!$J$7,0),0)) ->  | H91: =IF(B91="","",IF(B91<Support!$H$7,0,VLOOKUP(B91,Support!$H$4:$M$47,3))) ->  | I91: =IF(B91="","",IF(B91>=Support!$H$7,VLOOKUP(B91,Support!$H$4:$M$47,6),0)) ->  | J91: =IF(B91="","",IF(B91<Support!$A$7,0,VLOOKUP(B91,Support!$A$4:$F$47,6))) ->  | Q91: 0 | S91: 55 | T91: =IF(ISERR((IF(Support!$A$7=B91,Support!$B$7,IF(T90>0,T90*(1+$F$34),0)))),"",(IF(Support!$A$7=B91,Support!$B$7,IF(T90>0,T90*(1+$F$34),0)))) -> 
C92: 0 | D92: 0 | G92: =IF(B92="","",IF(B92>=Support!$A$7,IF(VLOOKUP(B92,Support!$A$4:$F$47,2)>0,VLOOKUP(B92,Support!$A$4:$F$47,3)-Support!$J$7,0),0)) ->  | H92: =IF(B92="","",IF(B92<Support!$H$7,0,VLOOKUP(B92,Support!$H$4:$M$47,3))) ->  | I92: =IF(B92="","",IF(B92>=Support!$H$7,VLOOKUP(B92,Support!$H$4:$M$47,6),0)) ->  | J92: =IF(B92="","",IF(B92<Support!$A$7,0,VLOOKUP(B92,Support!$A$4:$F$47,6))) ->  | Q92: 0 | S92: 56 | T92: =IF(ISERR((IF(Support!$A$7=B92,Support!$B$7,IF(T91>0,T91*(1+$F$34),0)))),"",(IF(Support!$A$7=B92,Support!$B$7,IF(T91>0,T91*(1+$F$34),0)))) -> 
C93: 0 | D93: 0 | G93: =IF(B93="","",IF(B93>=Support!$A$7,IF(VLOOKUP(B93,Support!$A$4:$F$47,2)>0,VLOOKUP(B93,Support!$A$4:$F$47,3)-Support!$J$7,0),0)) ->  | H93: =IF(B93="","",IF(B93<Support!$H$7,0,VLOOKUP(B93,Support!$H$4:$M$47,3))) ->  | I93: =IF(B93="","",IF(B93>=Support!$H$7,VLOOKUP(B93,Support!$H$4:$M$47,6),0)) ->  | J93: =IF(B93="","",IF(B93<Support!$A$7,0,VLOOKUP(B93,Support!$A$4:$F$47,6))) ->  | Q93: 0 | S93: 57 | T93: =IF(ISERR((IF(Support!$A$7=B93,Support!$B$7,IF(T92>0,T92*(1+$F$34),0)))),"",(IF(Support!$A$7=B93,Support!$B$7,IF(T92>0,T92*(1+$F$34),0)))) -> 
C94: 0 | D94: 0 | G94: =IF(B94="","",IF(B94>=Support!$A$7,IF(VLOOKUP(B94,Support!$A$4:$F$47,2)>0,VLOOKUP(B94,Support!$A$4:$F$47,3)-Support!$J$7,0),0)) ->  | H94: =IF(B94="","",IF(B94<Support!$H$7,0,VLOOKUP(B94,Support!$H$4:$M$47,3))) ->  | I94: =IF(B94="","",IF(B94>=Support!$H$7,VLOOKUP(B94,Support!$H$4:$M$47,6),0)) ->  | J94: =IF(B94="","",IF(B94<Support!$A$7,0,VLOOKUP(B94,Support!$A$4:$F$47,6))) ->  | Q94: 0 | S94: 58 | T94: =IF(ISERR((IF(Support!$A$7=B94,Support!$B$7,IF(T93>0,T93*(1+$F$34),0)))),"",(IF(Support!$A$7=B94,Support!$B$7,IF(T93>0,T93*(1+$F$34),0)))) -> 
C95: 0 | D95: 0 | G95: =IF(B95="","",IF(B95>=Support!$A$7,IF(VLOOKUP(B95,Support!$A$4:$F$47,2)>0,VLOOKUP(B95,Support!$A$4:$F$47,3)-Support!$J$7,0),0)) ->  | H95: =IF(B95="","",IF(B95<Support!$H$7,0,VLOOKUP(B95,Support!$H$4:$M$47,3))) ->  | I95: =IF(B95="","",IF(B95>=Support!$H$7,VLOOKUP(B95,Support!$H$4:$M$47,6),0)) ->  | J95: =IF(B95="","",IF(B95<Support!$A$7,0,VLOOKUP(B95,Support!$A$4:$F$47,6))) ->  | Q95: 0 | S95: 59 | T95: =IF(ISERR((IF(Support!$A$7=B95,Support!$B$7,IF(T94>0,T94*(1+$F$34),0)))),"",(IF(Support!$A$7=B95,Support!$B$7,IF(T94>0,T94*(1+$F$34),0)))) -> 
C96: 0 | D96: 0 | G96: =IF(B96="","",IF(B96>=Support!$A$7,IF(VLOOKUP(B96,Support!$A$4:$F$47,2)>0,VLOOKUP(B96,Support!$A$4:$F$47,3)-Support!$J$7,0),0)) ->  | H96: =IF(B96="","",IF(B96<Support!$H$7,0,VLOOKUP(B96,Support!$H$4:$M$47,3))) ->  | I96: =IF(B96="","",IF(B96>=Support!$H$7,VLOOKUP(B96,Support!$H$4:$M$47,6),0)) ->  | J96: =IF(B96="","",IF(B96<Support!$A$7,0,VLOOKUP(B96,Support!$A$4:$F$47,6))) ->  | Q96: 0 | S96: 60 | T96: =IF(ISERR((IF(Support!$A$7=B96,Support!$B$7,IF(T95>0,T95*(1+$F$34),0)))),"",(IF(Support!$A$7=B96,Support!$B$7,IF(T95>0,T95*(1+$F$34),0)))) -> 
C97: 0 | D97: 0 | G97: =IF(B97="","",IF(B97>=Support!$A$7,IF(VLOOKUP(B97,Support!$A$4:$F$47,2)>0,VLOOKUP(B97,Support!$A$4:$F$47,3)-Support!$J$7,0),0)) ->  | H97: =IF(B97="","",IF(B97<Support!$H$7,0,VLOOKUP(B97,Support!$H$4:$M$47,3))) ->  | I97: =IF(B97="","",IF(B97>=Support!$H$7,VLOOKUP(B97,Support!$H$4:$M$47,6),0)) ->  | J97: =IF(B97="","",IF(B97<Support!$A$7,0,VLOOKUP(B97,Support!$A$4:$F$47,6))) ->  | Q97: 0 | S97: 61 | T97: =IF(ISERR((IF(Support!$A$7=B97,Support!$B$7,IF(T96>0,T96*(1+$F$34),0)))),"",(IF(Support!$A$7=B97,Support!$B$7,IF(T96>0,T96*(1+$F$34),0)))) -> 
C98: 0 | D98: 0 | G98: =IF(B98="","",IF(B98>=Support!$A$7,IF(VLOOKUP(B98,Support!$A$4:$F$47,2)>0,VLOOKUP(B98,Support!$A$4:$F$47,3)-Support!$J$7,0),0)) ->  | H98: =IF(B98="","",IF(B98<Support!$H$7,0,VLOOKUP(B98,Support!$H$4:$M$47,3))) ->  | I98: =IF(B98="","",IF(B98>=Support!$H$7,VLOOKUP(B98,Support!$H$4:$M$47,6),0)) ->  | J98: =IF(B98="","",IF(B98<Support!$A$7,0,VLOOKUP(B98,Support!$A$4:$F$47,6))) ->  | Q98: 0 | S98: 62 | T98: =IF(ISERR((IF(Support!$A$7=B98,Support!$B$7,IF(T97>0,T97*(1+$F$34),0)))),"",(IF(Support!$A$7=B98,Support!$B$7,IF(T97>0,T97*(1+$F$34),0)))) -> 
C99: 0 | D99: 0 | G99: =IF(B99="","",IF(B99>=Support!$A$7,IF(VLOOKUP(B99,Support!$A$4:$F$47,2)>0,VLOOKUP(B99,Support!$A$4:$F$47,3)-Support!$J$7,0),0)) ->  | H99: =IF(B99="","",IF(B99<Support!$H$7,0,VLOOKUP(B99,Support!$H$4:$M$47,3))) ->  | I99: =IF(B99="","",IF(B99>=Support!$H$7,VLOOKUP(B99,Support!$H$4:$M$47,6),0)) ->  | J99: =IF(B99="","",IF(B99<Support!$A$7,0,VLOOKUP(B99,Support!$A$4:$F$47,6))) ->  | Q99: 0 | S99: 63 | T99: =IF(ISERR((IF(Support!$A$7=B99,Support!$B$7,IF(T98>0,T98*(1+$F$34),0)))),"",(IF(Support!$A$7=B99,Support!$B$7,IF(T98>0,T98*(1+$F$34),0)))) -> 
C100: 0 | D100: 0 | G100: =IF(B100="","",IF(B100>=Support!$A$7,IF(VLOOKUP(B100,Support!$A$4:$F$47,2)>0,VLOOKUP(B100,Support!$A$4:$F$47,3)-Support!$J$7,0),0)) ->  | H100: =IF(B100="","",IF(B100<Support!$H$7,0,VLOOKUP(B100,Support!$H$4:$M$47,3))) ->  | I100: =IF(B100="","",IF(B100>=Support!$H$7,VLOOKUP(B100,Support!$H$4:$M$47,6),0)) ->  | J100: =IF(B100="","",IF(B100<Support!$A$7,0,VLOOKUP(B100,Support!$A$4:$F$47,6))) ->  | Q100: 0 | S100: 64 | T100: =IF(ISERR((IF(Support!$A$7=B100,Support!$B$7,IF(T99>0,T99*(1+$F$34),0)))),"",(IF(Support!$A$7=B100,Support!$B$7,IF(T99>0,T99*(1+$F$34),0)))) -> 
C101: 0 | D101: 0 | G101: =IF(B101="","",IF(B101>=Support!$A$7,IF(VLOOKUP(B101,Support!$A$4:$F$47,2)>0,VLOOKUP(B101,Support!$A$4:$F$47,3)-Support!$J$7,0),0)) ->  | H101: =IF(B101="","",IF(B101<Support!$H$7,0,VLOOKUP(B101,Support!$H$4:$M$47,3))) ->  | I101: =IF(B101="","",IF(B101>=Support!$H$7,VLOOKUP(B101,Support!$H$4:$M$47,6),0)) ->  | J101: =IF(B101="","",IF(B101<Support!$A$7,0,VLOOKUP(B101,Support!$A$4:$F$47,6))) ->  | Q101: 0 | S101: 65 | T101: =IF(ISERR((IF(Support!$A$7=B101,Support!$B$7,IF(T100>0,T100*(1+$F$34),0)))),"",(IF(Support!$A$7=B101,Support!$B$7,IF(T100>0,T100*(1+$F$34),0)))) -> 
C102: =IF(B102<=$F$15,C101*(1+$F$14),0) -> 0 | D102: 0 | G102: =IF(B102="","",IF(B102>=Support!$A$7,IF(VLOOKUP(B102,Support!$A$4:$F$47,2)>0,VLOOKUP(B102,Support!$A$4:$F$47,3)-Support!$J$7,0),0)) ->  | H102: =IF(B102="","",IF(B102<Support!$H$7,0,VLOOKUP(B102,Support!$H$4:$M$47,3))) ->  | I102: =IF(B102="","",IF(B102>=Support!$H$7,VLOOKUP(B102,Support!$H$4:$M$47,6),0)) ->  | J102: =IF(B102="","",IF(B102<Support!$A$7,0,VLOOKUP(B102,Support!$A$4:$F$47,6))) ->  | P102: =(P101+E102)*(1+$F$23)/(1+$F$24) ->  | Q102: =C102/(1+$F$24)^(S102) -> 0 | S102: 66 | T102: =IF(ISERR((IF(Support!$A$7=B102,Support!$B$7,IF(T101>0,T101*(1+$F$34),0)))),"",(IF(Support!$A$7=B102,Support!$B$7,IF(T101>0,T101*(1+$F$34),0)))) -> 
B103: =IF(B102="","",IF(B102+1>$F$15+$F$16,"",B102+1)) ->  | C103: 0 | D103: 0 | E103: =IF(B103="","",$F$21*C103-G103) ->  | F103: =IF(B103="","",(E103+F102)*(1+$F$23)) ->  | G103: =IF(B103="","",IF(B103>=Support!$A$7,IF(VLOOKUP(B103,Support!$A$4:$F$47,2)>0,VLOOKUP(B103,Support!$A$4:$F$47,3)-Support!$J$7,0),0)) ->  | H103: =IF(B103="","",IF(B103<Support!$H$7,0,VLOOKUP(B103,Support!$H$4:$M$47,3))) ->  | I103: =IF(B103="","",IF(B103>=Support!$H$7,VLOOKUP(B103,Support!$H$4:$M$47,6),0)) ->  | J103: =IF(B103="","",IF(B103<Support!$A$7,0,VLOOKUP(B103,Support!$A$4:$F$47,6))) ->  | Q103: 0 | R103: =IF(C103=0,"",IF(H103=0,0,(H103+$F$30)/C103)) ->  | S103: 67 | T103: =IF(ISERR((IF(Support!$A$7=B103,Support!$B$7,IF(T102>0,T102*(1+$F$34),0)))),"",(IF(Support!$A$7=B103,Support!$B$7,IF(T102>0,T102*(1+$F$34),0)))) -> 
C104: 0 | D104: 0 | G104: =IF(B104="","",IF(B104>=Support!$A$7,IF(VLOOKUP(B104,Support!$A$4:$F$47,2)>0,VLOOKUP(B104,Support!$A$4:$F$47,3)-Support!$J$7,0),0)) ->  | H104: =IF(B104="","",IF(B104<Support!$H$7,0,VLOOKUP(B104,Support!$H$4:$M$47,3))) ->  | I104: =IF(B104="","",IF(B104>=Support!$H$7,VLOOKUP(B104,Support!$H$4:$M$47,6),0)) ->  | J104: =IF(B104="","",IF(B104<Support!$A$7,0,VLOOKUP(B104,Support!$A$4:$F$47,6))) ->  | Q104: 0 | S104: 68 | T104: =IF(ISERR((IF(Support!$A$7=B104,Support!$B$7,IF(T103>0,T103*(1+$F$34),0)))),"",(IF(Support!$A$7=B104,Support!$B$7,IF(T103>0,T103*(1+$F$34),0)))) -> 
C105: 0 | D105: 0 | G105: =IF(B105="","",IF(B105>=Support!$A$7,IF(VLOOKUP(B105,Support!$A$4:$F$47,2)>0,VLOOKUP(B105,Support!$A$4:$F$47,3)-Support!$J$7,0),0)) ->  | H105: =IF(B105="","",IF(B105<Support!$H$7,0,VLOOKUP(B105,Support!$H$4:$M$47,3))) ->  | I105: =IF(B105="","",IF(B105>=Support!$H$7,VLOOKUP(B105,Support!$H$4:$M$47,6),0)) ->  | J105: =IF(B105="","",IF(B105<Support!$A$7,0,VLOOKUP(B105,Support!$A$4:$F$47,6))) ->  | Q105: 0 | S105: 69 | T105: =IF(ISERR((IF(Support!$A$7=B105,Support!$B$7,IF(T104>0,T104*(1+$F$34),0)))),"",(IF(Support!$A$7=B105,Support!$B$7,IF(T104>0,T104*(1+$F$34),0)))) -> 
C106: 0 | D106: 0 | G106: =IF(B106="","",IF(B106>=Support!$A$7,IF(VLOOKUP(B106,Support!$A$4:$F$47,2)>0,VLOOKUP(B106,Support!$A$4:$F$47,3)-Support!$J$7,0),0)) ->  | H106: =IF(B106="","",IF(B106<Support!$H$7,0,VLOOKUP(B106,Support!$H$4:$M$47,3))) ->  | I106: =IF(B106="","",IF(B106>=Support!$H$7,VLOOKUP(B106,Support!$H$4:$M$47,6),0)) ->  | J106: =IF(B106="","",IF(B106<Support!$A$7,0,VLOOKUP(B106,Support!$A$4:$F$47,6))) ->  | Q106: 0 | S106: 70 | T106: =IF(ISERR((IF(Support!$A$7=B106,Support!$B$7,IF(T105>0,T105*(1+$F$34),0)))),"",(IF(Support!$A$7=B106,Support!$B$7,IF(T105>0,T105*(1+$F$34),0)))) -> 
C107: 0 | D107: 0 | G107: =IF(B107="","",IF(B107>=Support!$A$7,IF(VLOOKUP(B107,Support!$A$4:$F$47,2)>0,VLOOKUP(B107,Support!$A$4:$F$47,3)-Support!$J$7,0),0)) ->  | H107: =IF(B107="","",IF(B107<Support!$H$7,0,VLOOKUP(B107,Support!$H$4:$M$47,3))) ->  | I107: =IF(B107="","",IF(B107>=Support!$H$7,VLOOKUP(B107,Support!$H$4:$M$47,6),0)) ->  | J107: =IF(B107="","",IF(B107<Support!$A$7,0,VLOOKUP(B107,Support!$A$4:$F$47,6))) ->  | Q107: 0 | S107: 71 | T107: =IF(ISERR((IF(Support!$A$7=B107,Support!$B$7,IF(T106>0,T106*(1+$F$34),0)))),"",(IF(Support!$A$7=B107,Support!$B$7,IF(T106>0,T106*(1+$F$34),0)))) -> 
C108: 0 | D108: =C108*Annual_Savings -> 0 | G108: =IF(B108="","",IF(B108>=Support!$A$7,IF(VLOOKUP(B108,Support!$A$4:$F$47,2)>0,VLOOKUP(B108,Support!$A$4:$F$47,3)-Support!$J$7,0),0)) ->  | H108: =IF(B108="","",IF(B108<Support!$H$7,0,VLOOKUP(B108,Support!$H$4:$M$47,3))) ->  | I108: =IF(B108="","",IF(B108>=Support!$H$7,VLOOKUP(B108,Support!$H$4:$M$47,6),0)) ->  | J108: =IF(B108="","",IF(B108<Support!$A$7,0,VLOOKUP(B108,Support!$A$4:$F$47,6))) ->  | K108: =IF(B108="","",IF(C108>0,F108/C108,"None")) ->  | L108: =IF(B108="","",IF(C108>0,J108/C108,"None")) ->  | Q108: 0 | S108: 72 | T108: =IF(ISERR((IF(Support!$A$7=B108,Support!$B$7,IF(T107>0,T107*(1+$F$34),0)))),"",(IF(Support!$A$7=B108,Support!$B$7,IF(T107>0,T107*(1+$F$34),0)))) -> 
C109: 0 | D109: 0 | G109: =IF(B109="","",IF(B109>=Support!$A$7,IF(VLOOKUP(B109,Support!$A$4:$F$47,2)>0,VLOOKUP(B109,Support!$A$4:$F$47,3)-Support!$J$7,0),0)) ->  | H109: =IF(B109="","",IF(B109<Support!$H$7,0,VLOOKUP(B109,Support!$H$4:$M$47,3))) ->  | I109: =IF(B109="","",IF(B109>=Support!$H$7,VLOOKUP(B109,Support!$H$4:$M$47,6),0)) ->  | J109: =IF(B109="","",IF(B109<Support!$A$7,0,VLOOKUP(B109,Support!$A$4:$F$47,6))) ->  | K109: =IF(B109="","",IF(C109>0,F109/C109,"None")) ->  | L109: =IF(B109="","",IF(C109>0,J109/C109,"None")) ->  | Q109: 0 | S109: 73 | T109: =IF(ISERR((IF(Support!$A$7=B109,Support!$B$7,IF(T108>0,T108*(1+$F$34),0)))),"",(IF(Support!$A$7=B109,Support!$B$7,IF(T108>0,T108*(1+$F$34),0)))) -> 
C110: 0 | D110: 0 | G110: =IF(B110="","",IF(B110>=Support!$A$7,IF(VLOOKUP(B110,Support!$A$4:$F$47,2)>0,VLOOKUP(B110,Support!$A$4:$F$47,3)-Support!$J$7,0),0)) ->  | H110: =IF(B110="","",IF(B110<Support!$H$7,0,VLOOKUP(B110,Support!$H$4:$M$47,3))) ->  | I110: =IF(B110="","",IF(B110>=Support!$H$7,VLOOKUP(B110,Support!$H$4:$M$47,6),0)) ->  | J110: =IF(B110="","",IF(B110<Support!$A$7,0,VLOOKUP(B110,Support!$A$4:$F$47,6))) ->  | Q110: 0 | S110: 74 | T110: =IF(ISERR((IF(Support!$A$7=B110,Support!$B$7,IF(T109>0,T109*(1+$F$34),0)))),"",(IF(Support!$A$7=B110,Support!$B$7,IF(T109>0,T109*(1+$F$34),0)))) -> 
C111: 0 | D111: 0 | G111: =IF(B111="","",IF(B111>=Support!$A$7,IF(VLOOKUP(B111,Support!$A$4:$F$47,2)>0,VLOOKUP(B111,Support!$A$4:$F$47,3)-Support!$J$7,0),0)) ->  | H111: =IF(B111="","",IF(B111<Support!$H$7,0,VLOOKUP(B111,Support!$H$4:$M$47,3))) ->  | I111: =IF(B111="","",IF(B111>=Support!$H$7,VLOOKUP(B111,Support!$H$4:$M$47,6),0)) ->  | J111: =IF(B111="","",IF(B111<Support!$A$7,0,VLOOKUP(B111,Support!$A$4:$F$47,6))) ->  | Q111: 0 | S111: 75 | T111: =IF(ISERR((IF(Support!$A$7=B111,Support!$B$7,IF(T110>0,T110*(1+$F$34),0)))),"",(IF(Support!$A$7=B111,Support!$B$7,IF(T110>0,T110*(1+$F$34),0)))) -> 
C112: 0 | D112: 0 | G112: =IF(B112="","",IF(B112>=Support!$A$7,IF(VLOOKUP(B112,Support!$A$4:$F$47,2)>0,VLOOKUP(B112,Support!$A$4:$F$47,3)-Support!$J$7,0),0)) ->  | H112: =IF(B112="","",IF(B112<Support!$H$7,0,VLOOKUP(B112,Support!$H$4:$M$47,3))) ->  | I112: =IF(B112="","",IF(B112>=Support!$H$7,VLOOKUP(B112,Support!$H$4:$M$47,6),0)) ->  | J112: =IF(B112="","",IF(B112<Support!$A$7,0,VLOOKUP(B112,Support!$A$4:$F$47,6))) ->  | Q112: 0 | S112: 76 | T112: =IF(ISERR((IF(Support!$A$7=B112,Support!$B$7,IF(T111>0,T111*(1+$F$34),0)))),"",(IF(Support!$A$7=B112,Support!$B$7,IF(T111>0,T111*(1+$F$34),0)))) -> 
C113: 0 | D113: 0 | G113: =IF(B113="","",IF(B113>=Support!$A$7,IF(VLOOKUP(B113,Support!$A$4:$F$47,2)>0,VLOOKUP(B113,Support!$A$4:$F$47,3)-Support!$J$7,0),0)) ->  | H113: =IF(B113="","",IF(B113<Support!$H$7,0,VLOOKUP(B113,Support!$H$4:$M$47,3))) ->  | I113: =IF(B113="","",IF(B113>=Support!$H$7,VLOOKUP(B113,Support!$H$4:$M$47,6),0)) ->  | J113: =IF(B113="","",IF(B113<Support!$A$7,0,VLOOKUP(B113,Support!$A$4:$F$47,6))) ->  | Q113: 0 | S113: 77 | T113: =IF(ISERR((IF(Support!$A$7=B113,Support!$B$7,IF(T112>0,T112*(1+$F$34),0)))),"",(IF(Support!$A$7=B113,Support!$B$7,IF(T112>0,T112*(1+$F$34),0)))) -> 
C114: 0 | D114: 0 | G114: =IF(B114="","",IF(B114>=Support!$A$7,IF(VLOOKUP(B114,Support!$A$4:$F$47,2)>0,VLOOKUP(B114,Support!$A$4:$F$47,3)-Support!$J$7,0),0)) ->  | H114: =IF(B114="","",IF(B114<Support!$H$7,0,VLOOKUP(B114,Support!$H$4:$M$47,3))) ->  | I114: =IF(B114="","",IF(B114>=Support!$H$7,VLOOKUP(B114,Support!$H$4:$M$47,6),0)) ->  | J114: =IF(B114="","",IF(B114<Support!$A$7,0,VLOOKUP(B114,Support!$A$4:$F$47,6))) ->  | Q114: 0 | S114: 78 | T114: =IF(ISERR((IF(Support!$A$7=B114,Support!$B$7,IF(T113>0,T113*(1+$F$34),0)))),"",(IF(Support!$A$7=B114,Support!$B$7,IF(T113>0,T113*(1+$F$34),0)))) -> 
C115: 0 | D115: 0 | G115: =IF(B115="","",IF(B115>=Support!$A$7,IF(VLOOKUP(B115,Support!$A$4:$F$47,2)>0,VLOOKUP(B115,Support!$A$4:$F$47,3)-Support!$J$7,0),0)) ->  | H115: =IF(B115="","",IF(B115<Support!$H$7,0,VLOOKUP(B115,Support!$H$4:$M$47,3))) ->  | I115: =IF(B115="","",IF(B115>=Support!$H$7,VLOOKUP(B115,Support!$H$4:$M$47,6),0)) ->  | J115: =IF(B115="","",IF(B115<Support!$A$7,0,VLOOKUP(B115,Support!$A$4:$F$47,6))) ->  | Q115: 0 | S115: 79 | T115: =IF(ISERR((IF(Support!$A$7=B115,Support!$B$7,IF(T114>0,T114*(1+$F$34),0)))),"",(IF(Support!$A$7=B115,Support!$B$7,IF(T114>0,T114*(1+$F$34),0)))) -> 
C116: 0 | D116: 0 | G116: =IF(B116="","",IF(B116>=Support!$A$7,IF(VLOOKUP(B116,Support!$A$4:$F$47,2)>0,VLOOKUP(B116,Support!$A$4:$F$47,3)-Support!$J$7,0),0)) ->  | H116: =IF(B116="","",IF(B116<Support!$H$7,0,VLOOKUP(B116,Support!$H$4:$M$47,3))) ->  | I116: =IF(B116="","",IF(B116>=Support!$H$7,VLOOKUP(B116,Support!$H$4:$M$47,6),0)) ->  | J116: =IF(B116="","",IF(B116<Support!$A$7,0,VLOOKUP(B116,Support!$A$4:$F$47,6))) ->  | Q116: 0 | S116: 80 | T116: =IF(ISERR((IF(Support!$A$7=B116,Support!$B$7,IF(T115>0,T115*(1+$F$34),0)))),"",(IF(Support!$A$7=B116,Support!$B$7,IF(T115>0,T115*(1+$F$34),0)))) -> 
C117: 0 | D117: 0 | G117: =IF(B117="","",IF(B117>=Support!$A$7,IF(VLOOKUP(B117,Support!$A$4:$F$47,2)>0,VLOOKUP(B117,Support!$A$4:$F$47,3)-Support!$J$7,0),0)) ->  | H117: =IF(B117="","",IF(B117<Support!$H$7,0,VLOOKUP(B117,Support!$H$4:$M$47,3))) ->  | I117: =IF(B117="","",IF(B117>=Support!$H$7,VLOOKUP(B117,Support!$H$4:$M$47,6),0)) ->  | J117: =IF(B117="","",IF(B117<Support!$A$7,0,VLOOKUP(B117,Support!$A$4:$F$47,6))) ->  | Q117: 0 | S117: 81 | T117: =IF(ISERR((IF(Support!$A$7=B117,Support!$B$7,IF(T116>0,T116*(1+$F$34),0)))),"",(IF(Support!$A$7=B117,Support!$B$7,IF(T116>0,T116*(1+$F$34),0)))) -> 

Sheet Support
A1: Mortgage Payment Data
B4: Starting Balance | C4: Payment | D4: Principle | E4: Interest | F4: Balance | I4: Starting Balance | J4: Payment | K4: Principle | L4: Interest | M4: Balance
A7: ='Planning Ratios'!$F$26 -> 30 | B7: ='Planning Ratios'!$F$29 -> 250000 | C7: =-PMT('Planning Ratios'!$F$31,'Planning Ratios'!$F$33,'Planning Ratios'!$F$29) -> 14457.52478 | D7: =C7-E7 -> 4457.524783 | E7: ='Planning Ratios'!$F$29*'Planning Ratios'!$F$31 -> 10000 | F7: =B7-D7 -> 245542.4752 | H7: ='Planning Ratios'!$F$26 -> 30 | I7: ='Planning Ratios'!$F$29 -> 250000 | J7: =-PMT('Planning Ratios'!$F$31,Loan_Term,'Planning Ratios'!$F$29) -> 14457.52478 | K7: =J7-L7 -> 4457.524783 | L7: ='Planning Ratios'!$F$29*'Planning Ratios'!$F$31 -> 10000 | M7: =I7-K7 -> 245542.4752
A8: =A7+1 -> 31 | B8: =F7 -> 245542.4752 | C8: =IF(F7>C7,C7,F7+('Planning Ratios'!$F$31*F7)) -> 14457.52478 | D8: 4635.825775 | E8: ='Planning Ratios'!$F$31*B8 -> 9821.699009 | F8: =F7-D8 -> 240906.6494 | H8: =H7+1 -> 31 | I8: =M7 -> 245542.4752 | J8: =IF(M7>J7,J7,M7+('Planning Ratios'!$F$31*M7)) -> 14457.52478 | K8: 4635.825775 | L8: ='Planning Ratios'!$F$31*I8 -> 9821.699009 | M8: =M7-K8 -> 240906.6494
A9: 32 | B9: 240906.6494 | C9: =IF(F8>C8,C8,F8+('Planning Ratios'!$F$31*F8)) -> 14457.52478 | D9: 4821.258806 | E9: ='Planning Ratios'!$F$31*B9 -> 9636.265978 | F9: 236085.3906 | H9: 32 | I9: 240906.6494 | J9: =IF(M8>J8,J8,M8+('Planning Ratios'!$F$31*M8)) -> 14457.52478 | K9: 4821.258806 | L9: ='Planning Ratios'!$F$31*I9 -> 9636.265978 | M9: 236085.3906
A10: 33 | B10: 236085.3906 | C10: =IF(F9>C9,C9,F9+('Planning Ratios'!$F$31*F9)) -> 14457.52478 | D10: 5014.109158 | E10: ='Planning Ratios'!$F$31*B10 -> 9443.415625 | F10: 231071.2815 | H10: 33 | I10: 236085.3906 | J10: =IF(M9>J9,J9,M9+('Planning Ratios'!$F$31*M9)) -> 14457.52478 | K10: 5014.109158 | L10: ='Planning Ratios'!$F$31*I10 -> 9443.415625 | M10: 231071.2815
A11: 34 | B11: 231071.2815 | C11: =IF(F10>C10,C10,F10+('Planning Ratios'!$F$31*F10)) -> 14457.52478 | D11: 5214.673524 | E11: ='Planning Ratios'!$F$31*B11 -> 9242.851259 | F11: 225856.608 | H11: 34 | I11: 231071.2815 | J11: =IF(M10>J10,J10,M10+('Planning Ratios'!$F$31*M10)) -> 14457.52478 | K11: 5214.673524 | L11: ='Planning Ratios'!$F$31*I11 -> 9242.851259 | M11: 225856.608
A12: 35 | B12: 225856.608 | C12: =IF(F11>C11,C11,F11+('Planning Ratios'!$F$31*F11)) -> 14457.52478 | D12: 5423.260465 | E12: ='Planning Ratios'!$F$31*B12 -> 9034.264318 | F12: 220433.3475 | H12: 35 | I12: 225856.608 | J12: =IF(M11>J11,J11,M11+('Planning Ratios'!$F$31*M11)) -> 14457.52478 | K12: 5423.260465 | L12: ='Planning Ratios'!$F$31*I12 -> 9034.264318 | M12: 220433.3475
A13: 36 | B13: 220433.3475 | C13: =IF(F12>C12,C12,F12+('Planning Ratios'!$F$31*F12)) -> 14457.52478 | D13: 5640.190884 | E13: ='Planning Ratios'!$F$31*B13 -> 8817.3339 | F13: 214793.1566 | H13: 36 | I13: 220433.3475 | J13: =IF(M12>J12,J12,M12+('Planning Ratios'!$F$31*M12)) -> 14457.52478 | K13: 5640.190884 | L13: ='Planning Ratios'!$F$31*I13 -> 8817.3339 | M13: 214793.1566
A14: 37 | B14: 214793.1566 | C14: =IF(F13>C13,C13,F13+('Planning Ratios'!$F$31*F13)) -> 14457.52478 | D14: 5865.798519 | E14: ='Planning Ratios'!$F$31*B14 -> 8591.726264 | F14: 208927.3581 | H14: 37 | I14: 214793.1566 | J14: =IF(M13>J13,J13,M13+('Planning Ratios'!$F$31*M13)) -> 14457.52478 | K14: 5865.798519 | L14: ='Planning Ratios'!$F$31*I14 -> 8591.726264 | M14: 208927.3581
A15: 38 | B15: 208927.3581 | C15: =IF(F14>C14,C14,F14+('Planning Ratios'!$F$31*F14)) -> 14457.52478 | D15: 6100.43046 | E15: ='Planning Ratios'!$F$31*B15 -> 8357.094323 | F15: 202826.9276 | H15: 38 | I15: 208927.3581 | J15: =IF(M14>J14,J14,M14+('Planning Ratios'!$F$31*M14)) -> 14457.52478 | K15: 6100.43046 | L15: ='Planning Ratios'!$F$31*I15 -> 8357.094323 | M15: 202826.9276
A16: 39 | B16: 202826.9276 | C16: =IF(F15>C15,C15,F15+('Planning Ratios'!$F$31*F15)) -> 14457.52478 | D16: 6344.447678 | E16: ='Planning Ratios'!$F$31*B16 -> 8113.077105 | F16: 196482.4799 | H16: 39 | I16: 202826.9276 | J16: =IF(M15>J15,J15,M15+('Planning Ratios'!$F$31*M15)) -> 14457.52478 | K16: 6344.447678 | L16: ='Planning Ratios'!$F$31*I16 -> 8113.077105 | M16: 196482.4799
A17: 40 | B17: 196482.4799 | C17: =IF(F16>C16,C16,F16+('Planning Ratios'!$F$31*F16)) -> 14457.52478 | D17: 6598.225586 | E17: ='Planning Ratios'!$F$31*B17 -> 7859.299198 | F17: 189884.2544 | H17: 40 | I17: 196482.4799 | J17: =IF(M16>J16,J16,M16+('Planning Ratios'!$F$31*M16)) -> 14457.52478 | K17: 6598.225586 | L17: ='Planning Ratios'!$F$31*I17 -> 7859.299198 | M17: 189884.2544
A18: 41 | B18: 189884.2544 | C18: =IF(F17>C17,C17,F17+('Planning Ratios'!$F$31*F17)) -> 14457.52478 | D18: 6862.154609 | E18: ='Planning Ratios'!$F$31*B18 -> 7595.370174 | F18: 183022.0998 | H18: 41 | I18: 189884.2544 | J18: =IF(M17>J17,J17,M17+('Planning Ratios'!$F$31*M17)) -> 14457.52478 | K18: 6862.154609 | L18: ='Planning Ratios'!$F$31*I18 -> 7595.370174 | M18: 183022.0998
A19: 42 | B19: 183022.0998 | C19: =IF(F18>C18,C18,F18+('Planning Ratios'!$F$31*F18)) -> 14457.52478 | D19: 7136.640793 | E19: ='Planning Ratios'!$F$31*B19 -> 7320.88399 | F19: 175885.459 | H19: 42 | I19: 183022.0998 | J19: =IF(M18>J18,J18,M18+('Planning Ratios'!$F$31*M18)) -> 14457.52478 | K19: 7136.640793 | L19: ='Planning Ratios'!$F$31*I19 -> 7320.88399 | M19: 175885.459
A20: 43 | B20: 175885.459 | C20: =IF(F19>C19,C19,F19+('Planning Ratios'!$F$31*F19)) -> 14457.52478 | D20: 7422.106425 | E20: ='Planning Ratios'!$F$31*B20 -> 7035.418358 | F20: 168463.3525 | H20: 43 | I20: 175885.459 | J20: =IF(M19>J19,J19,M19+('Planning Ratios'!$F$31*M19)) -> 14457.52478 | K20: 7422.106425 | L20: ='Planning Ratios'!$F$31*I20 -> 7035.418358 | M20: 168463.3525
A21: 44 | B21: 168463.3525 | C21: =IF(F20>C20,C20,F20+('Planning Ratios'!$F$31*F20)) -> 14457.52478 | D21: 7718.990682 | E21: ='Planning Ratios'!$F$31*B21 -> 6738.534101 | F21: 160744.3619 | H21: 44 | I21: 168463.3525 | J21: =IF(M20>J20,J20,M20+('Planning Ratios'!$F$31*M20)) -> 14457.52478 | K21: 7718.990682 | L21: ='Planning Ratios'!$F$31*I21 -> 6738.534101 | M21: 160744.3619
A22: 45 | B22: 160744.3619 | C22: =IF(F21>C21,C21,F21+('Planning Ratios'!$F$31*F21)) -> 14457.52478 | D22: 8027.750309 | E22: ='Planning Ratios'!$F$31*B22 -> 6429.774474 | F22: 152716.6115 | H22: 45 | I22: 160744.3619 | J22: =IF(M21>J21,J21,M21+('Planning Ratios'!$F$31*M21)) -> 14457.52478 | K22: 8027.750309 | L22: ='Planning Ratios'!$F$31*I22 -> 6429.774474 | M22: 152716.6115
A23: 46 | B23: 152716.6115 | C23: =IF(F22>C22,C22,F22+('Planning Ratios'!$F$31*F22)) -> 14457.52478 | D23: 8348.860322 | E23: ='Planning Ratios'!$F$31*B23 -> 6108.664462 | F23: 144367.7512 | H23: 46 | I23: 152716.6115 | J23: =IF(M22>J22,J22,M22+('Planning Ratios'!$F$31*M22)) -> 14457.52478 | K23: 8348.860322 | L23: ='Planning Ratios'!$F$31*I23 -> 6108.664462 | M23: 144367.7512
A24: 47 | B24: 144367.7512 | C24: =IF(F23>C23,C23,F23+('Planning Ratios'!$F$31*F23)) -> 14457.52478 | D24: 8682.814735 | E24: ='Planning Ratios'!$F$31*B24 -> 5774.710049 | F24: 135684.9365 | H24: 47 | I24: 144367.7512 | J24: =IF(M23>J23,J23,M23+('Planning Ratios'!$F$31*M23)) -> 14457.52478 | K24: 8682.814735 | L24: ='Planning Ratios'!$F$31*I24 -> 5774.710049 | M24: 135684.9365
A25: 48 | B25: 135684.9365 | C25: =IF(F24>C24,C24,F24+('Planning Ratios'!$F$31*F24)) -> 14457.52478 | D25: 9030.127324 | E25: ='Planning Ratios'!$F$31*B25 -> 5427.397459 | F25: 126654.8092 | H25: 48 | I25: 135684.9365 | J25: =IF(M24>J24,J24,M24+('Planning Ratios'!$F$31*M24)) -> 14457.52478 | K25: 9030.127324 | L25: ='Planning Ratios'!$F$31*I25 -> 5427.397459 | M25: 126654.8092
A26: 49 | B26: 126654.8092 | C26: =IF(F25>C25,C25,F25+('Planning Ratios'!$F$31*F25)) -> 14457.52478 | D26: 9391.332417 | E26: ='Planning Ratios'!$F$31*B26 -> 5066.192367 | F26: 117263.4767 | H26: 49 | I26: 126654.8092 | J26: =IF(M25>J25,J25,M25+('Planning Ratios'!$F$31*M25)) -> 14457.52478 | K26: 9391.332417 | L26: ='Planning Ratios'!$F$31*I26 -> 5066.192367 | M26: 117263.4767
A27: 50 | B27: 117263.4767 | C27: =IF(F26>C26,C26,F26+('Planning Ratios'!$F$31*F26)) -> 14457.52478 | D27: 9766.985714 | E27: ='Planning Ratios'!$F$31*B27 -> 4690.53907 | F27: 107496.491 | H27: 50 | I27: 117263.4767 | J27: =IF(M26>J26,J26,M26+('Planning Ratios'!$F$31*M26)) -> 14457.52478 | K27: 9766.985714 | L27: ='Planning Ratios'!$F$31*I27 -> 4690.53907 | M27: 107496.491
A28: 51 | B28: 107496.491 | C28: =IF(F27>C27,C27,F27+('Planning Ratios'!$F$31*F27)) -> 14457.52478 | D28: 10157.66514 | E28: ='Planning Ratios'!$F$31*B28 -> 4299.859641 | F28: 97338.82589 | H28: 51 | I28: 107496.491 | J28: =IF(M27>J27,J27,M27+('Planning Ratios'!$F$31*M27)) -> 14457.52478 | K28: 10157.66514 | L28: ='Planning Ratios'!$F$31*I28 -> 4299.859641 | M28: 97338.82589
A29: 52 | B29: 97338.82589 | C29: =IF(F28>C28,C28,F28+('Planning Ratios'!$F$31*F28)) -> 14457.52478 | D29: 10563.97175 | E29: ='Planning Ratios'!$F$31*B29 -> 3893.553036 | F29: 86774.85414 | H29: 52 | I29: 97338.82589 | J29: =IF(M28>J28,J28,M28+('Planning Ratios'!$F$31*M28)) -> 14457.52478 | K29: 10563.97175 | L29: ='Planning Ratios'!$F$31*I29 -> 3893.553036 | M29: 86774.85414
A30: 53 | B30: 86774.85414 | C30: =IF(F29>C29,C29,F29+('Planning Ratios'!$F$31*F29)) -> 14457.52478 | D30: 10986.53062 | E30: ='Planning Ratios'!$F$31*B30 -> 3470.994166 | F30: 75788.32352 | H30: 53 | I30: 86774.85414 | J30: =IF(M29>J29,J29,M29+('Planning Ratios'!$F$31*M29)) -> 14457.52478 | K30: 10986.53062 | L30: ='Planning Ratios'!$F$31*I30 -> 3470.994166 | M30: 75788.32352
A31: 54 | B31: 75788.32352 | C31: =IF(F30>C30,C30,F30+('Planning Ratios'!$F$31*F30)) -> 14457.52478 | D31: 11425.99184 | E31: ='Planning Ratios'!$F$31*B31 -> 3031.532941 | F31: 64362.33168 | H31: 54 | I31: 75788.32352 | J31: =IF(M30>J30,J30,M30+('Planning Ratios'!$F$31*M30)) -> 14457.52478 | K31: 11425.99184 | L31: ='Planning Ratios'!$F$31*I31 -> 3031.532941 | M31: 64362.33168
A32: 55 | B32: 64362.33168 | C32: =IF(F31>C31,C31,F31+('Planning Ratios'!$F$31*F31)) -> 14457.52478 | D32: 11883.03152 | E32: ='Planning Ratios'!$F$31*B32 -> 2574.493267 | F32: 52479.30017 | H32: 55 | I32: 64362.33168 | J32: =IF(M31>J31,J31,M31+('Planning Ratios'!$F$31*M31)) -> 14457.52478 | K32: 11883.03152 | L32: ='Planning Ratios'!$F$31*I32 -> 2574.493267 | M32: 52479.30017
A33: 56 | B33: 52479.30017 | C33: =IF(F32>C32,C32,F32+('Planning Ratios'!$F$31*F32)) -> 14457.52478 | D33: 12358.35278 | E33: ='Planning Ratios'!$F$31*B33 -> 2099.172007 | F33: 40120.94739 | H33: 56 | I33: 52479.30017 | J33: =IF(M32>J32,J32,M32+('Planning Ratios'!$F$31*M32)) -> 14457.52478 | K33: 12358.35278 | L33: ='Planning Ratios'!$F$31*I33 -> 2099.172007 | M33: 40120.94739
A34: 57 | B34: 40120.94739 | C34: =IF(F33>C33,C33,F33+('Planning Ratios'!$F$31*F33)) -> 14457.52478 | D34: 12852.68689 | E34: ='Planning Ratios'!$F$31*B34 -> 1604.837896 | F34: 27268.2605 | H34: 57 | I34: 40120.94739 | J34: =IF(M33>J33,J33,M33+('Planning Ratios'!$F$31*M33)) -> 14457.52478 | K34: 12852.68689 | L34: ='Planning Ratios'!$F$31*I34 -> 1604.837896 | M34: 27268.2605
A35: 58 | B35: 27268.2605 | C35: =IF(F34>C34,C34,F34+('Planning Ratios'!$F$31*F34)) -> 14457.52478 | D35: 13366.79436 | E35: ='Planning Ratios'!$F$31*B35 -> 1090.73042 | F35: 13901.46614 | H35: 58 | I35: 27268.2605 | J35: =IF(M34>J34,J34,M34+('Planning Ratios'!$F$31*M34)) -> 14457.52478 | K35: 13366.79436 | L35: ='Planning Ratios'!$F$31*I35 -> 1090.73042 | M35: 13901.46614
A36: 59 | B36: 13901.46614 | C36: =IF(F35>C35,C35,F35+('Planning Ratios'!$F$31*F35)) -> 14457.52478 | D36: 13901.46614 | E36: ='Planning Ratios'!$F$31*B36 -> 556.0586455 | F36: 0 | H36: 59 | I36: 13901.46614 | J36: =IF(M35>J35,J35,M35+('Planning Ratios'!$F$31*M35)) -> 14457.52478 | K36: 13901.46614 | L36: ='Planning Ratios'!$F$31*I36 -> 556.0586455 | M36: 0
A37: 60 | B37: 0 | C37: =IF(F36>C36,C36,F36+('Planning Ratios'!$F$31*F36)) -> 0 | D37: 0 | E37: ='Planning Ratios'!$F$31*B37 -> 0 | F37: 0 | H37: 60 | I37: 0 | J37: =IF(M36>J36,J36,M36+('Planning Ratios'!$F$31*M36)) -> 0 | K37: 0 | L37: ='Planning Ratios'!$F$31*I37 -> 0 | M37: 0
A38: 61 | B38: 0 | C38: =IF(F37>C37,C37,F37+('Planning Ratios'!$F$31*F37)) -> 0 | D38: 0 | E38: ='Planning Ratios'!$F$31*B38 -> 0 | F38: 0 | H38: 61 | I38: 0 | J38: =IF(M37>J37,J37,M37+('Planning Ratios'!$F$31*M37)) -> 0 | K38: 0 | L38: ='Planning Ratios'!$F$31*I38 -> 0 | M38: 0
A39: 62 | B39: 0 | C39: =IF(F38>C38,C38,F38+('Planning Ratios'!$F$31*F38)) -> 0 | D39: 0 | E39: ='Planning Ratios'!$F$31*B39 -> 0 | F39: 0 | H39: 62 | I39: 0 | J39: =IF(M38>J38,J38,M38+('Planning Ratios'!$F$31*M38)) -> 0 | K39: 0 | L39: ='Planning Ratios'!$F$31*I39 -> 0 | M39: 0
A40: 63 | B40: 0 | C40: =IF(F39>C39,C39,F39+('Planning Ratios'!$F$31*F39)) -> 0 | D40: 0 | E40: ='Planning Ratios'!$F$31*B40 -> 0 | F40: 0 | H40: 63 | I40: 0 | J40: =IF(M39>J39,J39,M39+('Planning Ratios'!$F$31*M39)) -> 0 | K40: 0 | L40: ='Planning Ratios'!$F$31*I40 -> 0 | M40: 0
A41: 64 | B41: 0 | C41: =IF(F40>C40,C40,F40+('Planning Ratios'!$F$31*F40)) -> 0 | D41: 0 | E41: ='Planning Ratios'!$F$31*B41 -> 0 | F41: 0 | H41: 64 | I41: 0 | J41: =IF(M40>J40,J40,M40+('Planning Ratios'!$F$31*M40)) -> 0 | K41: 0 | L41: ='Planning Ratios'!$F$31*I41 -> 0 | M41: 0
A42: 65 | B42: 0 | C42: =IF(F41>C41,C41,F41+('Planning Ratios'!$F$31*F41)) -> 0 | D42: 0 | E42: ='Planning Ratios'!$F$31*B42 -> 0 | F42: 0 | H42: 65 | I42: 0 | J42: =IF(M41>J41,J41,M41+('Planning Ratios'!$F$31*M41)) -> 0 | K42: 0 | L42: ='Planning Ratios'!$F$31*I42 -> 0 | M42: 0
A43: 66 | B43: 0 | C43: =IF(F42>C42,C42,F42+('Planning Ratios'!$F$31*F42)) -> 0 | D43: 0 | E43: ='Planning Ratios'!$F$31*B43 -> 0 | F43: 0 | H43: 66 | I43: 0 | J43: =IF(M42>J42,J42,M42+('Planning Ratios'!$F$31*M42)) -> 0 | K43: 0 | L43: ='Planning Ratios'!$F$31*I43 -> 0 | M43: 0
A44: 67 | B44: 0 | C44: =IF(F43>C43,C43,F43+('Planning Ratios'!$F$31*F43)) -> 0 | D44: 0 | E44: ='Planning Ratios'!$F$31*B44 -> 0 | F44: 0 | H44: 67 | I44: 0 | J44: =IF(M43>J43,J43,M43+('Planning Ratios'!$F$31*M43)) -> 0 | K44: 0 | L44: ='Planning Ratios'!$F$31*I44 -> 0 | M44: 0
A45: 68 | B45: 0 | C45: =IF(F44>C44,C44,F44+('Planning Ratios'!$F$31*F44)) -> 0 | D45: 0 | E45: ='Planning Ratios'!$F$31*B45 -> 0 | F45: 0 | H45: 68 | I45: 0 | J45: =IF(M44>J44,J44,M44+('Planning Ratios'!$F$31*M44)) -> 0 | K45: 0 | L45: ='Planning Ratios'!$F$31*I45 -> 0 | M45: 0
A46: 69 | B46: 0 | C46: =IF(F45>C45,C45,F45+('Planning Ratios'!$F$31*F45)) -> 0 | D46: 0 | E46: ='Planning Ratios'!$F$31*B46 -> 0 | F46: 0 | H46: 69 | I46: 0 | J46: =IF(M45>J45,J45,M45+('Planning Ratios'!$F$31*M45)) -> 0 | K46: 0 | L46: ='Planning Ratios'!$F$31*I46 -> 0 | M46: 0
A47: 70 | B47: 0 | C47: =IF(F46>C46,C46,F46+('Planning Ratios'!$F$31*F46)) -> 0 | D47: 0 | E47: ='Planning Ratios'!$F$31*B47 -> 0 | F47: 0 | H47: 70 | I47: 0 | J47: =IF(M46>J46,J46,M46+('Planning Ratios'!$F$31*M46)) -> 0 | K47: 0 | L47: ='Planning Ratios'!$F$31*I47 -> 0 | M47: 0
